Workbook

Sheet Data
A1: =TODAY() -> 2021-02-25 | F1: =IF(G1<>J1,"هناك خطا . برجاء المراجعة","الاجمالى صحيح") -> الاجمالى صحيح | G1: =SUBTOTAL(9,G3:G100000) -> 124131.9 | H1: 108887.6316 | I1: 15244.26842 | J1: 124131.9 | L1: 10124425 | N1: =SUBTOTAL(9,N3:N100000) -> 72253 | O1: =SUBTOTAL(9,O3:O100000) -> 9930.552 | P1: 41948.348
A2: Brand | B2: Name | C2: Code | D2: Color | E2: Note | F2: Size | G2: Amount | H2: Amount Before VAT | I2: Vat | J2: Amount After Vat | K2: Cash / Visa | L2: Date | M2: Period | N2: Designer Share | O2: I/S Share | P2: Net Profit
A3: Own The Trend | B3: Baybe in tortoise | C3: S05002 | D3: Tortoise | G3: 850 | H3: =IFERROR((G3*100/114),"") -> 745.6140351 | I3: =IFERROR((H3*14/100),"") -> 104.3859649 | J3: =IFERROR((H3+I3),"") -> 850 | K3: Cash | L3: 2020-12-19 | M3: =TEXT(L3,"mmm-YYYY") -> Dec-2020 | N3: =IFERROR($G3*VLOOKUP($A3,'نسب العمولة'!$C$3:$F$800,2,0),"") -> 595 | O3: =IFERROR($G3*VLOOKUP($A3,'نسب العمولة'!$C$3:$F$800,3,0),"") -> 68 | P3: =IFERROR($G3*VLOOKUP($A3,'نسب العمولة'!$C$3:$F$800,4,0),"") -> 187
A4: Own The Trend | B4: Cashmere in Black | C4: S08901 | D4: Black | G4: 850 | H4: =IFERROR((G4*100/114),"") -> 745.6140351 | I4: =IFERROR((H4*14/100),"") -> 104.3859649 | J4: =IFERROR((H4+I4),"") -> 850 | K4: Cash | L4: 2020-12-19 | M4: =TEXT(L4,"mmm-YYYY") -> Dec-2020 | N4: =IFERROR($G4*VLOOKUP($A4,'نسب العمولة'!$C$3:$F$800,2,0),"") -> 595 | O4: =IFERROR($G4*VLOOKUP($A4,'نسب العمولة'!$C$3:$F$800,3,0),"") -> 68 | P4: =IFERROR($G4*VLOOKUP($A4,'نسب العمولة'!$C$3:$F$800,4,0),"") -> 187
A5: Own The Trend | B5: Baybe in Black | C5: S05001 | D5: Black | G5: 850 | H5: 745.6140351 | I5: 104.3859649 | J5: 850 | K5: Cash | L5: 2020-12-19 | M5: Dec-2020 | N5: =IFERROR($G5*VLOOKUP($A5,'نسب العمولة'!$C$3:$F$800,2,0),"") -> 595 | O5: =IFERROR($G5*VLOOKUP($A5,'نسب العمولة'!$C$3:$F$800,3,0),"") -> 68 | P5: =IFERROR($G5*VLOOKUP($A5,'نسب العمولة'!$C$3:$F$800,4,0),"") -> 187
A6: By Hand | B6: Astray Cylinder | D6: Black | F6: 8*10 | G6: 630 | H6: 552.6315789 | I6: 77.36842105 | J6: 630 | K6: Cash | L6: 2020-12-19 | M6: Dec-2020 | N6: =IFERROR($G6*VLOOKUP($A6,'نسب العمولة'!$C$3:$F$800,2,0),"") -> 0 | O6: =IFERROR($G6*VLOOKUP($A6,'نسب العمولة'!$C$3:$F$800,3,0),"") -> 50.4 | P6: =IFERROR($G6*VLOOKUP($A6,'نسب العمولة'!$C$3:$F$800,4,0),"") -> 579.6
A7: ETTC Denzy | B7: MIDI PATISSERIE Footed Service Plate | C7: 96697 | E7: Denzi(ettc) 15% | F7: 23Hcm | G7: 100 | H7: 87.71929825 | I7: 12.28070175 | J7: 100 | K7: Cash | L7: 2020-12-19 | M7: Dec-2020 | N7: =IFERROR($G7*VLOOKUP($A7,'نسب العمولة'!$C$3:$F$800,2,0),"") -> 85 | O7: =IFERROR($G7*VLOOKUP($A7,'نسب العمولة'!$C$3:$F$800,3,0),"") -> 8 | P7: =IFERROR($G7*VLOOKUP($A7,'نسب العمولة'!$C$3:$F$800,4,0),"") -> 7
A8: ETTC Denzy | B8: MIDI PATISSERIE Footed Service Plate | C8: 96697 | E8: Denzi(ettc) 15% | F8: 23Hcm | G8: 100 | H8: 87.71929825 | I8: 12.28070175 | J8: 100 | K8: Cash | L8: 2020-12-19 | M8: Dec-2020 | N8: =IFERROR($G8*VLOOKUP($A8,'نسب العمولة'!$C$3:$F$800,2,0),"") -> 85 | O8: =IFERROR($G8*VLOOKUP($A8,'نسب العمولة'!$C$3:$F$800,3,0),"") -> 8 | P8: =IFERROR($G8*VLOOKUP($A8,'نسب العمولة'!$C$3:$F$800,4,0),"") -> 7
A9: Candle By Pose. | B9: Big Queen | C9: BQW | D9: White / Vanilla | F9: Large | G9: 330 | H9: 289.4736842 | I9: 40.52631579 | J9: 330 | K9: Cash | L9: 2020-12-19 | M9: Dec-2020 | N9: =IFERROR($G9*VLOOKUP($A9,'نسب العمولة'!$C$3:$F$800,2,0),"") -> 247.5 | O9: =IFERROR($G9*VLOOKUP($A9,'نسب العمولة'!$C$3:$F$800,3,0),"") -> 26.4 | P9: =IFERROR($G9*VLOOKUP($A9,'نسب العمولة'!$C$3:$F$800,4,0),"") -> 56.1
A10: Candle By Pose. | B10: Big Queen | C10: BQG | D10: Mint green / Lavender | F10: Large | G10: 330 | H10: 289.4736842 | I10: 40.52631579 | J10: 330 | K10: Cash | L10: 2020-12-19 | M10: Dec-2020 | N10: =IFERROR($G10*VLOOKUP($A10,'نسب العمولة'!$C$3:$F$800,2,0),"") -> 247.5 | O10: =IFERROR($G10*VLOOKUP($A10,'نسب العمولة'!$C$3:$F$800,3,0),"") -> 26.4 | P10: =IFERROR($G10*VLOOKUP($A10,'نسب العمولة'!$C$3:$F$800,4,0),"") -> 56.1
A11: Candle By Pose. | B11: Small Queen | C11: SQB | D11: Brown / Dark Chocolate and Honey | F11: Small | G11: 250 | H11: 219.2982456 | I11: 30.70175439 | J11: 250 | K11: Cash | L11: 2020-12-19 | M11: Dec-2020 | N11: =IFERROR($G11*VLOOKUP($A11,'نسب العمولة'!$C$3:$F$800,2,0),"") -> 187.5 | O11: =IFERROR($G11*VLOOKUP($A11,'نسب العمولة'!$C$3:$F$800,3,0),"") -> 20 | P11: =IFERROR($G11*VLOOKUP($A11,'نسب العمولة'!$C$3:$F$800,4,0),"") -> 42.5
A12: Own The Trend | B12: Marylin in Smoke tortoise | C12: S050321 | D12: Smoke Tortoise | G12: 850 | H12: 745.6140351 | I12: 104.3859649 | J12: 850 | K12: Cash | L12: 2020-12-20 | M12: Dec-2020 | N12: =IFERROR($G12*VLOOKUP($A12,'نسب العمولة'!$C$3:$F$800,2,0),"") -> 595 | O12: =IFERROR($G12*VLOOKUP($A12,'نسب العمولة'!$C$3:$F$800,3,0),"") -> 68 | P12: =IFERROR($G12*VLOOKUP($A12,'نسب العمولة'!$C$3:$F$800,4,0),"") -> 187
A13: Own The Trend | B13: Sammy in Gold/black | C13: S00404 | D13: Black/gold | G13: 850 | H13: 745.6140351 | I13: 104.3859649 | J13: 850 | K13: Cash | L13: 2020-12-20 | M13: Dec-2020 | N13: =IFERROR($G13*VLOOKUP($A13,'نسب العمولة'!$C$3:$F$800,2,0),"") -> 595 | O13: =IFERROR($G13*VLOOKUP($A13,'نسب العمولة'!$C$3:$F$800,3,0),"") -> 68 | P13: =IFERROR($G13*VLOOKUP($A13,'نسب العمولة'!$C$3:$F$800,4,0),"") -> 187
A14: Own The Trend | B14: Royce in full black | C14: S04901 | D14: Black | G14: 850 | H14: 745.6140351 | I14: 104.3859649 | J14: 850 | K14: Cash | L14: 2020-12-20 | M14: Dec-2020 | N14: =IFERROR($G14*VLOOKUP($A14,'نسب العمولة'!$C$3:$F$800,2,0),"") -> 595 | O14: =IFERROR($G14*VLOOKUP($A14,'نسب العمولة'!$C$3:$F$800,3,0),"") -> 68 | P14: =IFERROR($G14*VLOOKUP($A14,'نسب العمولة'!$C$3:$F$800,4,0),"") -> 187
A15: Candle By Pose. | B15: Small Queen | C15: SQW | D15: White / Vanilla | F15: Small | G15: 250 | H15: 219.2982456 | I15: 30.70175439 | J15: 250 | K15: Cash | L15: 2020-12-21 | M15: Dec-2020 | N15: =IFERROR($G15*VLOOKUP($A15,'نسب العمولة'!$C$3:$F$800,2,0),"") -> 187.5 | O15: =IFERROR($G15*VLOOKUP($A15,'نسب العمولة'!$C$3:$F$800,3,0),"") -> 20 | P15: =IFERROR($G15*VLOOKUP($A15,'نسب العمولة'!$C$3:$F$800,4,0),"") -> 42.5
A16: Candle By Pose. | B16: Small Queen | C16: SQW | D16: White / Vanilla | F16: Small | G16: 250 | H16: 219.2982456 | I16: 30.70175439 | J16: 250 | K16: Cash | L16: 2020-12-21 | M16: Dec-2020 | N16: =IFERROR($G16*VLOOKUP($A16,'نسب العمولة'!$C$3:$F$800,2,0),"") -> 187.5 | O16: =IFERROR($G16*VLOOKUP($A16,'نسب العمولة'!$C$3:$F$800,3,0),"") -> 20 | P16: =IFERROR($G16*VLOOKUP($A16,'نسب العمولة'!$C$3:$F$800,4,0),"") -> 42.5
A17: Candle By Pose. | B17: Big Queen | C17: BQB | D17: Brown / Dark Chocolate and Honey | F17: Large | G17: 330 | H17: 289.4736842 | I17: 40.52631579 | J17: 330 | K17: Cash | L17: 2020-12-21 | M17: Dec-2020 | N17: =IFERROR($G17*VLOOKUP($A17,'نسب العمولة'!$C$3:$F$800,2,0),"") -> 247.5 | O17: =IFERROR($G17*VLOOKUP($A17,'نسب العمولة'!$C$3:$F$800,3,0),"") -> 26.4 | P17: =IFERROR($G17*VLOOKUP($A17,'نسب العمولة'!$C$3:$F$800,4,0),"") -> 56.1
A18: Candle By Pose. | B18: Small King | C18: SKB | D18: Brown / Dark Chocolate and Honey | F18: Small | G18: 250 | H18: 219.2982456 | I18: 30.70175439 | J18: 250 | K18: Cash | L18: 2020-12-21 | M18: Dec-2020 | N18: =IFERROR($G18*VLOOKUP($A18,'نسب العمولة'!$C$3:$F$800,2,0),"") -> 187.5 | O18: =IFERROR($G18*VLOOKUP($A18,'نسب العمولة'!$C$3:$F$800,3,0),"") -> 20 | P18: =IFERROR($G18*VLOOKUP($A18,'نسب العمولة'!$C$3:$F$800,4,0),"") -> 42.5
A19: SAAB | B19: Ashtray stand | C19: Gold ss stand | D19: Black | G19: 1200 | H19: 1052.631579 | I19: 147.3684211 | J19: 1200 | K19: Cash | L19: 2020-12-21 | M19: Dec-2020 | N19: =IFERROR($G19*VLOOKUP($A19,'نسب العمولة'!$C$3:$F$800,2,0),"") -> 840 | O19: =IFERROR($G19*VLOOKUP($A19,'نسب العمولة'!$C$3:$F$800,3,0),"") -> 96 | P19: =IFERROR($G19*VLOOKUP($A19,'نسب العمولة'!$C$3:$F$800,4,0),"") -> 264
A20: HandPick | B20: Long VASE | D20: White | F20: 28cm*17cm | G20: 330 | H20: 289.4736842 | I20: 40.52631579 | J20: 330 | K20: Cash | L20: 2020-12-21 | M20: Dec-2020 | N20: =IFERROR($G20*VLOOKUP($A20,'نسب العمولة'!$C$3:$F$800,2,0),"") -> 231 | O20: =IFERROR($G20*VLOOKUP($A20,'نسب العمولة'!$C$3:$F$800,3,0),"") -> 26.4 | P20: =IFERROR($G20*VLOOKUP($A20,'نسب العمولة'!$C$3:$F$800,4,0),"") -> 72.6
A21: TIYI | C21: 22221600500358201- | D21: tweed | F21: 40 | G21: 600 | H21: 526.3157895 | I21: 73.68421053 | J21: 600 | K21: Cash | L21: 2020-12-21 | M21: Dec-2020 | N21: =IFERROR($G21*VLOOKUP($A21,'نسب العمولة'!$C$3:$F$800,2,0),"") -> 450 | O21: =IFERROR($G21*VLOOKUP($A21,'نسب العمولة'!$C$3:$F$800,3,0),"") -> 48 | P21: =IFERROR($G21*VLOOKUP($A21,'نسب العمولة'!$C$3:$F$800,4,0),"") -> 102
A22: Eunoia | B22: Petite Bud Vase | C22: PBV-016 | D22: Clear | F22: Height 6 Cm | G22: 120 | H22: 105.2631579 | I22: 14.73684211 | J22: 120 | K22: Cash | L22: 2020-12-21 | M22: Dec-2020 | N22: =IFERROR($G22*VLOOKUP($A22,'نسب العمولة'!$C$3:$F$800,2,0),"") -> 84 | O22: =IFERROR($G22*VLOOKUP($A22,'نسب العمولة'!$C$3:$F$800,3,0),"") -> 9.6 | P22: =IFERROR($G22*VLOOKUP($A22,'نسب العمولة'!$C$3:$F$800,4,0),"") -> 26.4
A23: Own The Trend | B23: Skinny retro in black | C23: S03001 | D23: Black | G23: 850 | H23: 745.6140351 | I23: 104.3859649 | J23: 850 | K23: Visa | L23: 2020-12-21 | M23: Dec-2020 | N23: =IFERROR($G23*VLOOKUP($A23,'نسب العمولة'!$C$3:$F$800,2,0),"") -> 595 | O23: =IFERROR($G23*VLOOKUP($A23,'نسب العمولة'!$C$3:$F$800,3,0),"") -> 68 | P23: =IFERROR($G23*VLOOKUP($A23,'نسب العمولة'!$C$3:$F$800,4,0),"") -> 187
A24: By Hand | B24: Ashtray Half Zap | D24: Alabaster | G24: 670 | H24: 587.7192982 | I24: 82.28070175 | J24: 670 | K24: Visa | L24: 2020-12-22 | M24: Dec-2020 | N24: =IFERROR($G24*VLOOKUP($A24,'نسب العمولة'!$C$3:$F$800,2,0),"") -> 0 | O24: =IFERROR($G24*VLOOKUP($A24,'نسب العمولة'!$C$3:$F$800,3,0),"") -> 53.6 | P24: =IFERROR($G24*VLOOKUP($A24,'نسب العمولة'!$C$3:$F$800,4,0),"") -> 616.4
A25: Ariika | B25: Dawn Rug | C25: 6222019553429 | F25: 250x170cm | G25: 3188 | H25: 2796.491228 | I25: 391.5087719 | J25: 3188 | K25: Visa | L25: 2020-12-22 | M25: Dec-2020 | N25: =IFERROR($G25*VLOOKUP($A25,'نسب العمولة'!$C$3:$F$800,2,0),"") -> 2231.6 | O25: =IFERROR($G25*VLOOKUP($A25,'نسب العمولة'!$C$3:$F$800,3,0),"") -> 255.04 | P25: =IFERROR($G25*VLOOKUP($A25,'نسب العمولة'!$C$3:$F$800,4,0),"") -> 701.36
A26: Candle By Pose. | B26: Big Queen | C26: BQG | D26: Mint green / Lavender | F26: Large | G26: 330 | H26: 289.4736842 | I26: 40.52631579 | J26: 330 | K26: Visa | L26: 2020-12-22 | M26: Dec-2020 | N26: =IFERROR($G26*VLOOKUP($A26,'نسب العمولة'!$C$3:$F$800,2,0),"") -> 247.5 | O26: =IFERROR($G26*VLOOKUP($A26,'نسب العمولة'!$C$3:$F$800,3,0),"") -> 26.4 | P26: =IFERROR($G26*VLOOKUP($A26,'نسب العمولة'!$C$3:$F$800,4,0),"") -> 56.1
A27: Candle By Pose. | B27: Big Queen | C27: BQB | D27: Brown / Dark Chocolate and Honey | F27: Large | G27: 330 | H27: 289.4736842 | I27: 40.52631579 | J27: 330 | K27: Visa | L27: 2020-12-22 | M27: Dec-2020 | N27: =IFERROR($G27*VLOOKUP($A27,'نسب العمولة'!$C$3:$F$800,2,0),"") -> 247.5 | O27: =IFERROR($G27*VLOOKUP($A27,'نسب العمولة'!$C$3:$F$800,3,0),"") -> 26.4 | P27: =IFERROR($G27*VLOOKUP($A27,'نسب العمولة'!$C$3:$F$800,4,0),"") -> 56.1
A28: Celeste | B28: Candles | F28: Large | G28: 800 | H28: 701.754386 | I28: 98.24561404 | J28: 800 | K28: Visa | L28: 2020-12-22 | M28: Dec-2020 | N28: =IFERROR($G28*VLOOKUP($A28,'نسب العمولة'!$C$3:$F$800,2,0),"") -> 560 | O28: =IFERROR($G28*VLOOKUP($A28,'نسب العمولة'!$C$3:$F$800,3,0),"") -> 64 | P28: =IFERROR($G28*VLOOKUP($A28,'نسب العمولة'!$C$3:$F$800,4,0),"") -> 176
A29: By Hand | B29: Astray Cylinder | D29: Black | F29: 8*10 | G29: 630 | H29: 552.6315789 | I29: 77.36842105 | J29: 630 | K29: Visa | L29: 2020-12-22 | M29: Dec-2020 | N29: =IFERROR($G29*VLOOKUP($A29,'نسب العمولة'!$C$3:$F$800,2,0),"") -> 0 | O29: =IFERROR($G29*VLOOKUP($A29,'نسب العمولة'!$C$3:$F$800,3,0),"") -> 50.4 | P29: =IFERROR($G29*VLOOKUP($A29,'نسب العمولة'!$C$3:$F$800,4,0),"") -> 579.6
A30: By Hand | B30: Astray Cylinder | D30: White | F30: 8*10 | G30: 570 | H30: 500 | I30: 70 | J30: 570 | K30: Visa | L30: 2020-12-22 | M30: Dec-2020 | N30: =IFERROR($G30*VLOOKUP($A30,'نسب العمولة'!$C$3:$F$800,2,0),"") -> 0 | O30: =IFERROR($G30*VLOOKUP($A30,'نسب العمولة'!$C$3:$F$800,3,0),"") -> 45.6 | P30: =IFERROR($G30*VLOOKUP($A30,'نسب العمولة'!$C$3:$F$800,4,0),"") -> 524.4
A31: By Hand | B31: Astray Cylinder | D31: Green | F31: 8*10 | G31: 630 | H31: 552.6315789 | I31: 77.36842105 | J31: 630 | K31: Visa | L31: 2020-12-22 | M31: Dec-2020 | N31: =IFERROR($G31*VLOOKUP($A31,'نسب العمولة'!$C$3:$F$800,2,0),"") -> 0 | O31: =IFERROR($G31*VLOOKUP($A31,'نسب العمولة'!$C$3:$F$800,3,0),"") -> 50.4 | P31: =IFERROR($G31*VLOOKUP($A31,'نسب العمولة'!$C$3:$F$800,4,0),"") -> 579.6
A32: Can lemon | G32: 40 | H32: 35.0877193 | I32: 4.912280702 | J32: 40 | K32: Visa | L32: 2020-12-22 | M32: Dec-2020 | N32: =IFERROR($G32*VLOOKUP($A32,'نسب العمولة'!$C$3:$F$800,2,0),"") -> 0 | O32: =IFERROR($G32*VLOOKUP($A32,'نسب العمولة'!$C$3:$F$800,3,0),"") -> 3.2 | P32: =IFERROR($G32*VLOOKUP($A32,'نسب العمولة'!$C$3:$F$800,4,0),"") -> 36.8
A33: Candle By Pose. | B33: Big Queen | C33: BQB | D33: Brown / Dark Chocolate and Honey | F33: Large | G33: 330 | H33: 289.4736842 | I33: 40.52631579 | J33: 330 | K33: Visa | L33: 2020-12-22 | M33: Dec-2020 | N33: =IFERROR($G33*VLOOKUP($A33,'نسب العمولة'!$C$3:$F$800,2,0),"") -> 247.5 | O33: =IFERROR($G33*VLOOKUP($A33,'نسب العمولة'!$C$3:$F$800,3,0),"") -> 26.4 | P33: =IFERROR($G33*VLOOKUP($A33,'نسب العمولة'!$C$3:$F$800,4,0),"") -> 56.1
A34: Candle By Pose. | B34: Small Queen | C34: SQW | D34: White / Vanilla | F34: Small | G34: 250 | H34: 219.2982456 | I34: 30.70175439 | J34: 250 | K34: Visa | L34: 2020-12-22 | M34: Dec-2020 | N34: =IFERROR($G34*VLOOKUP($A34,'نسب العمولة'!$C$3:$F$800,2,0),"") -> 187.5 | O34: =IFERROR($G34*VLOOKUP($A34,'نسب العمولة'!$C$3:$F$800,3,0),"") -> 20 | P34: =IFERROR($G34*VLOOKUP($A34,'نسب العمولة'!$C$3:$F$800,4,0),"") -> 42.5
A35: Aliel | B35: Beige Horra | G35: 2500 | H35: 2192.982456 | I35: 307.0175439 | J35: 2500 | K35: Visa | L35: 2020-12-22 | M35: Dec-2020 | N35: =IFERROR($G35*VLOOKUP($A35,'نسب العمولة'!$C$3:$F$800,2,0),"") -> 1750 | O35: =IFERROR($G35*VLOOKUP($A35,'نسب العمولة'!$C$3:$F$800,3,0),"") -> 200 | P35: =IFERROR($G35*VLOOKUP($A35,'نسب العمولة'!$C$3:$F$800,4,0),"") -> 550
A36: Candle By Pose. | B36: Small Queen | C36: SQB | D36: Brown / Dark Chocolate and Honey | F36: Small | G36: 250 | H36: 219.2982456 | I36: 30.70175439 | J36: 250 | K36: Visa | L36: 2020-12-22 | M36: Dec-2020 | N36: =IFERROR($G36*VLOOKUP($A36,'نسب العمولة'!$C$3:$F$800,2,0),"") -> 187.5 | O36: =IFERROR($G36*VLOOKUP($A36,'نسب العمولة'!$C$3:$F$800,3,0),"") -> 20 | P36: =IFERROR($G36*VLOOKUP($A36,'نسب العمولة'!$C$3:$F$800,4,0),"") -> 42.5
A37: By Aziza. | B37: Judjing you | C37: R005 | D37: Tapestry | F37: Medium | G37: 2090 | H37: 1833.333333 | I37: 256.6666667 | J37: 2090 | K37: Visa | L37: 2020-12-22 | M37: Dec-2020 | N37: =IFERROR($G37*VLOOKUP($A37,'نسب العمولة'!$C$3:$F$800,2,0),"") -> 1567.5 | O37: =IFERROR($G37*VLOOKUP($A37,'نسب العمولة'!$C$3:$F$800,3,0),"") -> 167.2 | P37: =IFERROR($G37*VLOOKUP($A37,'نسب العمولة'!$C$3:$F$800,4,0),"") -> 355.3
A38: TIYI | B38: Tweed | F38: 38 | G38: 599 | H38: 525.4385965 | I38: 73.56140351 | J38: 599 | K38: Visa | L38: 2020-12-22 | M38: Dec-2020 | N38: =IFERROR($G38*VLOOKUP($A38,'نسب العمولة'!$C$3:$F$800,2,0),"") -> 449.25 | O38: =IFERROR($G38*VLOOKUP($A38,'نسب العمولة'!$C$3:$F$800,3,0),"") -> 47.92 | P38: =IFERROR($G38*VLOOKUP($A38,'نسب العمولة'!$C$3:$F$800,4,0),"") -> 101.83
A39: SAAB | B39: SEATED DEEP PLATTER GOLD | D39: White | F39: 42*28*4 | G39: 1700 | H39: 1491.22807 | I39: 208.7719298 | J39: 1700 | K39: Visa | L39: 2020-12-23 | M39: Dec-2020 | N39: =IFERROR($G39*VLOOKUP($A39,'نسب العمولة'!$C$3:$F$800,2,0),"") -> 1190 | O39: =IFERROR($G39*VLOOKUP($A39,'نسب العمولة'!$C$3:$F$800,3,0),"") -> 136 | P39: =IFERROR($G39*VLOOKUP($A39,'نسب العمولة'!$C$3:$F$800,4,0),"") -> 374
A40: Celeste | B40: Blue Geode Wine Stopper | D40: Blue Geode | G40: 450 | H40: 394.7368421 | I40: 55.26315789 | J40: 450 | K40: Visa | L40: 2020-12-23 | M40: Dec-2020 | N40: =IFERROR($G40*VLOOKUP($A40,'نسب العمولة'!$C$3:$F$800,2,0),"") -> 315 | O40: =IFERROR($G40*VLOOKUP($A40,'نسب العمولة'!$C$3:$F$800,3,0),"") -> 36 | P40: =IFERROR($G40*VLOOKUP($A40,'نسب العمولة'!$C$3:$F$800,4,0),"") -> 99
A41: Candle By Pose. | B41: Big Queen | C41: BQW | D41: White / Vanilla | F41: Large | G41: 330 | H41: 289.4736842 | I41: 40.52631579 | J41: 330 | K41: Visa | L41: 2020-12-23 | M41: Dec-2020 | N41: =IFERROR($G41*VLOOKUP($A41,'نسب العمولة'!$C$3:$F$800,2,0),"") -> 247.5 | O41: =IFERROR($G41*VLOOKUP($A41,'نسب العمولة'!$C$3:$F$800,3,0),"") -> 26.4 | P41: =IFERROR($G41*VLOOKUP($A41,'نسب العمولة'!$C$3:$F$800,4,0),"") -> 56.1
A42: By Hand | B42: Astray Cylinder | D42: White | G42: 569 | H42: 499.122807 | I42: 69.87719298 | J42: 569 | K42: Visa | L42: 2020-12-23 | M42: Dec-2020 | N42: =IFERROR($G42*VLOOKUP($A42,'نسب العمولة'!$C$3:$F$800,2,0),"") -> 0 | O42: =IFERROR($G42*VLOOKUP($A42,'نسب العمولة'!$C$3:$F$800,3,0),"") -> 45.52 | P42: =IFERROR($G42*VLOOKUP($A42,'نسب العمولة'!$C$3:$F$800,4,0),"") -> 523.48
A43: By Hand | B43: Ashtray Classic | D43: Green | G43: 629 | H43: 551.754386 | I43: 77.24561404 | J43: 629 | K43: Visa | L43: 2020-12-23 | M43: Dec-2020 | N43: =IFERROR($G43*VLOOKUP($A43,'نسب العمولة'!$C$3:$F$800,2,0),"") -> 0 | O43: =IFERROR($G43*VLOOKUP($A43,'نسب العمولة'!$C$3:$F$800,3,0),"") -> 50.32 | P43: =IFERROR($G43*VLOOKUP($A43,'نسب العمولة'!$C$3:$F$800,4,0),"") -> 578.68
A44: AMM Home | B44: BELTED MUG | C44: AMMBMG | D44: SPOTTED GREY | F44: 400ML | G44: 285 | H44: 250 | I44: 35 | J44: 285 | K44: Visa | L44: 2020-12-23 | M44: Dec-2020 | N44: =IFERROR($G44*VLOOKUP($A44,'نسب العمولة'!$C$3:$F$800,2,0),"") -> 199.5 | O44: =IFERROR($G44*VLOOKUP($A44,'نسب العمولة'!$C$3:$F$800,3,0),"") -> 22.8 | P44: =IFERROR($G44*VLOOKUP($A44,'نسب العمولة'!$C$3:$F$800,4,0),"") -> 62.7
A45: Siko | B45: shirt | C45: SK 10 | G45: 3200 | H45: 2807.017544 | I45: 392.9824561 | J45: 3200 | K45: Visa | L45: 2020-12-23 | M45: Dec-2020 | N45: =IFERROR($G45*VLOOKUP($A45,'نسب العمولة'!$C$3:$F$800,2,0),"") -> 2240 | O45: =IFERROR($G45*VLOOKUP($A45,'نسب العمولة'!$C$3:$F$800,3,0),"") -> 256 | P45: =IFERROR($G45*VLOOKUP($A45,'نسب العمولة'!$C$3:$F$800,4,0),"") -> 704
A46: Ramla | B46: Alaadin purple | C46: 76 | F46: 39 | G46: 750 | H46: 657.8947368 | I46: 92.10526316 | J46: 750 | K46: Visa | L46: 2020-12-23 | M46: Dec-2020 | N46: =IFERROR($G46*VLOOKUP($A46,'نسب العمولة'!$C$3:$F$800,2,0),"") -> 525 | O46: =IFERROR($G46*VLOOKUP($A46,'نسب العمولة'!$C$3:$F$800,3,0),"") -> 60 | P46: =IFERROR($G46*VLOOKUP($A46,'نسب العمولة'!$C$3:$F$800,4,0),"") -> 165
A47: Braes | B47: Lip Oil | G47: 130 | H47: 114.0350877 | I47: 15.96491228 | J47: 130 | K47: Visa | L47: 2020-12-23 | M47: Dec-2020 | N47: =IFERROR($G47*VLOOKUP($A47,'نسب العمولة'!$C$3:$F$800,2,0),"") -> 91 | O47: =IFERROR($G47*VLOOKUP($A47,'نسب العمولة'!$C$3:$F$800,3,0),"") -> 10.4 | P47: =IFERROR($G47*VLOOKUP($A47,'نسب العمولة'!$C$3:$F$800,4,0),"") -> 28.6
A48: AMM Home | B48: Belted mug | C48: AMMBMG | D48: Black | F48: 400ML | G48: 285 | H48: 250 | I48: 35 | J48: 285 | K48: Visa | L48: 2020-12-23 | M48: Dec-2020 | N48: =IFERROR($G48*VLOOKUP($A48,'نسب العمولة'!$C$3:$F$800,2,0),"") -> 199.5 | O48: =IFERROR($G48*VLOOKUP($A48,'نسب العمولة'!$C$3:$F$800,3,0),"") -> 22.8 | P48: =IFERROR($G48*VLOOKUP($A48,'نسب العمولة'!$C$3:$F$800,4,0),"") -> 62.7
A49: Candle By Pose. | B49: Small Queen | C49: Brown | D49: Brown / Dark Chocolate and Honey | G49: 250 | H49: 219.2982456 | I49: 30.70175439 | J49: 250 | K49: Cash | L49: 2020-12-23 | M49: Dec-2020 | N49: =IFERROR($G49*VLOOKUP($A49,'نسب العمولة'!$C$3:$F$800,2,0),"") -> 187.5 | O49: =IFERROR($G49*VLOOKUP($A49,'نسب العمولة'!$C$3:$F$800,3,0),"") -> 20 | P49: =IFERROR($G49*VLOOKUP($A49,'نسب العمولة'!$C$3:$F$800,4,0),"") -> 42.5
A50: Aliel | B50: Fuschia Horra | D50: Fuschia | G50: 2700 | H50: 2368.421053 | I50: 331.5789474 | J50: 2700 | K50: Cash | L50: 2020-12-23 | M50: Dec-2020 | N50: =IFERROR($G50*VLOOKUP($A50,'نسب العمولة'!$C$3:$F$800,2,0),"") -> 1890 | O50: =IFERROR($G50*VLOOKUP($A50,'نسب العمولة'!$C$3:$F$800,3,0),"") -> 216 | P50: =IFERROR($G50*VLOOKUP($A50,'نسب العمولة'!$C$3:$F$800,4,0),"") -> 594
A51: Aliel | B51: Burgundy Horra | D51: Burgundy | G51: 3000 | H51: 2631.578947 | I51: 368.4210526 | J51: 3000 | K51: Cash | L51: 2020-12-23 | M51: Dec-2020 | N51: =IFERROR($G51*VLOOKUP($A51,'نسب العمولة'!$C$3:$F$800,2,0),"") -> 2100 | O51: =IFERROR($G51*VLOOKUP($A51,'نسب العمولة'!$C$3:$F$800,3,0),"") -> 240 | P51: =IFERROR($G51*VLOOKUP($A51,'نسب العمولة'!$C$3:$F$800,4,0),"") -> 660
A52: Own The Trend | B52: Skinny in tortoise | C52: S03002 | D52: Tortoise | G52: 850 | H52: 745.6140351 | I52: 104.3859649 | J52: 850 | K52: Visa | L52: 2020-12-24 | M52: Dec-2020 | N52: =IFERROR($G52*VLOOKUP($A52,'نسب العمولة'!$C$3:$F$800,2,0),"") -> 595 | O52: =IFERROR($G52*VLOOKUP($A52,'نسب العمولة'!$C$3:$F$800,3,0),"") -> 68 | P52: =IFERROR($G52*VLOOKUP($A52,'نسب العمولة'!$C$3:$F$800,4,0),"") -> 187
A53: Indira | C53: IN2169E | D53: Opaque | G53: 2500 | H53: 2192.982456 | I53: 307.0175439 | J53: 2500 | K53: Visa | L53: 2020-12-24 | M53: Dec-2020 | N53: =IFERROR($G53*VLOOKUP($A53,'نسب العمولة'!$C$3:$F$800,2,0),"") -> 1750 | O53: =IFERROR($G53*VLOOKUP($A53,'نسب العمولة'!$C$3:$F$800,3,0),"") -> 200 | P53: =IFERROR($G53*VLOOKUP($A53,'نسب العمولة'!$C$3:$F$800,4,0),"") -> 550
A54: Earth Owls | B54: Pinneaple and vanilla body scrub | C54: B03 | F54: 500g | G54: 270 | H54: 236.8421053 | I54: 33.15789474 | J54: 270 | K54: Cash | L54: 2020-12-24 | M54: Dec-2020 | N54: =IFERROR($G54*VLOOKUP($A54,'نسب العمولة'!$C$3:$F$800,2,0),"") -> 189 | O54: =IFERROR($G54*VLOOKUP($A54,'نسب العمولة'!$C$3:$F$800,3,0),"") -> 21.6 | P54: =IFERROR($G54*VLOOKUP($A54,'نسب العمولة'!$C$3:$F$800,4,0),"") -> 59.4
A55: Braes | B55: Shampoo | G55: 150 | H55: 131.5789474 | I55: 18.42105263 | J55: 150 | K55: Cash | L55: 2020-12-24 | M55: Dec-2020 | N55: =IFERROR($G55*VLOOKUP($A55,'نسب العمولة'!$C$3:$F$800,2,0),"") -> 105 | O55: =IFERROR($G55*VLOOKUP($A55,'نسب العمولة'!$C$3:$F$800,3,0),"") -> 12 | P55: =IFERROR($G55*VLOOKUP($A55,'نسب العمولة'!$C$3:$F$800,4,0),"") -> 33
A56: Braes | B56: Lip Oil | G56: 130 | H56: 114.0350877 | I56: 15.96491228 | J56: 130 | K56: Cash | L56: 2020-12-24 | M56: Dec-2020 | N56: =IFERROR($G56*VLOOKUP($A56,'نسب العمولة'!$C$3:$F$800,2,0),"") -> 91 | O56: =IFERROR($G56*VLOOKUP($A56,'نسب العمولة'!$C$3:$F$800,3,0),"") -> 10.4 | P56: =IFERROR($G56*VLOOKUP($A56,'نسب العمولة'!$C$3:$F$800,4,0),"") -> 28.6
A57: Braes | B57: Facial Oil | G57: 150 | H57: 131.5789474 | I57: 18.42105263 | J57: 150 | K57: Visa | L57: 2020-12-24 | M57: Dec-2020 | N57: =IFERROR($G57*VLOOKUP($A57,'نسب العمولة'!$C$3:$F$800,2,0),"") -> 105 | O57: =IFERROR($G57*VLOOKUP($A57,'نسب العمولة'!$C$3:$F$800,3,0),"") -> 12 | P57: =IFERROR($G57*VLOOKUP($A57,'نسب العمولة'!$C$3:$F$800,4,0),"") -> 33
A58: Braes | B58: Anti-frizz serum for oily hair | G58: 170 | H58: 149.122807 | I58: 20.87719298 | J58: 170 | K58: Visa | L58: 2020-12-24 | M58: Dec-2020 | N58: =IFERROR($G58*VLOOKUP($A58,'نسب العمولة'!$C$3:$F$800,2,0),"") -> 119 | O58: =IFERROR($G58*VLOOKUP($A58,'نسب العمولة'!$C$3:$F$800,3,0),"") -> 13.6 | P58: =IFERROR($G58*VLOOKUP($A58,'نسب العمولة'!$C$3:$F$800,4,0),"") -> 37.4
A59: Braes | B59: Hair Mask | G59: 300 | H59: 263.1578947 | I59: 36.84210526 | J59: 300 | K59: Visa | L59: 2020-12-24 | M59: Dec-2020 | N59: =IFERROR($G59*VLOOKUP($A59,'نسب العمولة'!$C$3:$F$800,2,0),"") -> 210 | O59: =IFERROR($G59*VLOOKUP($A59,'نسب العمولة'!$C$3:$F$800,3,0),"") -> 24 | P59: =IFERROR($G59*VLOOKUP($A59,'نسب العمولة'!$C$3:$F$800,4,0),"") -> 66
A60: ETIKK | B60: ORIENTAL WOODS | C60: FD200OW | F60: 200ml | G60: 600 | H60: 526.3157895 | I60: 73.68421053 | J60: 600 | K60: Visa | L60: 2020-12-24 | M60: Dec-2020 | N60: =IFERROR($G60*VLOOKUP($A60,'نسب العمولة'!$C$3:$F$800,2,0),"") -> 420 | O60: =IFERROR($G60*VLOOKUP($A60,'نسب العمولة'!$C$3:$F$800,3,0),"") -> 48 | P60: =IFERROR($G60*VLOOKUP($A60,'نسب العمولة'!$C$3:$F$800,4,0),"") -> 132
A61: ETIKK | B61: MUSKY VANILLA | C61: FD200MV | F61: 200ml | G61: 600 | H61: 526.3157895 | I61: 73.68421053 | J61: 600 | K61: Visa | L61: 2020-12-24 | M61: Dec-2020 | N61: =IFERROR($G61*VLOOKUP($A61,'نسب العمولة'!$C$3:$F$800,2,0),"") -> 420 | O61: =IFERROR($G61*VLOOKUP($A61,'نسب العمولة'!$C$3:$F$800,3,0),"") -> 48 | P61: =IFERROR($G61*VLOOKUP($A61,'نسب العمولة'!$C$3:$F$800,4,0),"") -> 132
A62: AMM Home | B62: BELTED MUG | C62: AMMBMG | D62: SPOTTED GREY | F62: 400ML | G62: 285 | H62: 250 | I62: 35 | J62: 285 | K62: Visa | L62: 2020-12-24 | M62: Dec-2020 | N62: =IFERROR($G62*VLOOKUP($A62,'نسب العمولة'!$C$3:$F$800,2,0),"") -> 199.5 | O62: =IFERROR($G62*VLOOKUP($A62,'نسب العمولة'!$C$3:$F$800,3,0),"") -> 22.8 | P62: =IFERROR($G62*VLOOKUP($A62,'نسب العمولة'!$C$3:$F$800,4,0),"") -> 62.7
A63: AMM Home | B63: BELTED MUG | C63: AMMBMG | D63: SPOTTED GREY | F63: 400ML | G63: 285 | H63: 250 | I63: 35 | J63: 285 | K63: Visa | L63: 2020-12-24 | M63: Dec-2020 | N63: =IFERROR($G63*VLOOKUP($A63,'نسب العمولة'!$C$3:$F$800,2,0),"") -> 199.5 | O63: =IFERROR($G63*VLOOKUP($A63,'نسب العمولة'!$C$3:$F$800,3,0),"") -> 22.8 | P63: =IFERROR($G63*VLOOKUP($A63,'نسب العمولة'!$C$3:$F$800,4,0),"") -> 62.7
A64: AMM Home | B64: BELTED MUG | C64: AMMBMG | D64: SPOTTED GREY | F64: 400ML | G64: 285 | H64: 250 | I64: 35 | J64: 285 | K64: Visa | L64: 2020-12-24 | M64: Dec-2020 | N64: =IFERROR($G64*VLOOKUP($A64,'نسب العمولة'!$C$3:$F$800,2,0),"") -> 199.5 | O64: =IFERROR($G64*VLOOKUP($A64,'نسب العمولة'!$C$3:$F$800,3,0),"") -> 22.8 | P64: =IFERROR($G64*VLOOKUP($A64,'نسب العمولة'!$C$3:$F$800,4,0),"") -> 62.7
A65: From Her Travels | F65: Large | G65: 320 | H65: 280.7017544 | I65: 39.29824561 | J65: 320 | K65: Visa | L65: 2020-12-24 | M65: Dec-2020 | N65: =IFERROR($G65*VLOOKUP($A65,'نسب العمولة'!$C$3:$F$800,2,0),"") -> 224 | O65: =IFERROR($G65*VLOOKUP($A65,'نسب العمولة'!$C$3:$F$800,3,0),"") -> 25.6 | P65: =IFERROR($G65*VLOOKUP($A65,'نسب العمولة'!$C$3:$F$800,4,0),"") -> 70.4
A66: Braes | B66: Conditionner | G66: 150 | H66: 131.5789474 | I66: 18.42105263 | J66: 150 | K66: Visa | L66: 2020-12-24 | M66: Dec-2020 | N66: =IFERROR($G66*VLOOKUP($A66,'نسب العمولة'!$C$3:$F$800,2,0),"") -> 105 | O66: =IFERROR($G66*VLOOKUP($A66,'نسب العمولة'!$C$3:$F$800,3,0),"") -> 12 | P66: =IFERROR($G66*VLOOKUP($A66,'نسب العمولة'!$C$3:$F$800,4,0),"") -> 33
A67: Earth Owls | B67: Pinneaple and vanilla body scrub | C67: B03 | F67: 500g | G67: 270 | H67: 236.8421053 | I67: 33.15789474 | J67: 270 | K67: Visa | L67: 2020-12-24 | M67: Dec-2020 | N67: =IFERROR($G67*VLOOKUP($A67,'نسب العمولة'!$C$3:$F$800,2,0),"") -> 189 | O67: =IFERROR($G67*VLOOKUP($A67,'نسب العمولة'!$C$3:$F$800,3,0),"") -> 21.6 | P67: =IFERROR($G67*VLOOKUP($A67,'نسب العمولة'!$C$3:$F$800,4,0),"") -> 59.4
A68: Braes | B68: Lip Oil | G68: 130 | H68: =IFERROR((G68*100/114),"") -> 114.0350877 | I68: =IFERROR((H68*14/100),"") -> 15.96491228 | J68: =IFERROR((H68+I68),"") -> 130 | K68: Visa | L68: 2020-12-24 | M68: =TEXT(L68,"mmm-YYYY") -> Dec-2020 | N68: =IFERROR($G68*VLOOKUP($A68,'نسب العمولة'!$C$3:$F$800,2,0),"") -> 91 | O68: =IFERROR($G68*VLOOKUP($A68,'نسب العمولة'!$C$3:$F$800,3,0),"") -> 10.4 | P68: =IFERROR($G68*VLOOKUP($A68,'نسب العمولة'!$C$3:$F$800,4,0),"") -> 28.6
A69: Braes | B69: Facial Oil | G69: 150 | H69: 131.5789474 | I69: 18.42105263 | J69: 150 | K69: Cash | L69: 2020-12-24 | M69: Dec-2020 | N69: =IFERROR($G69*VLOOKUP($A69,'نسب العمولة'!$C$3:$F$800,2,0),"") -> 105 | O69: =IFERROR($G69*VLOOKUP($A69,'نسب العمولة'!$C$3:$F$800,3,0),"") -> 12 | P69: =IFERROR($G69*VLOOKUP($A69,'نسب العمولة'!$C$3:$F$800,4,0),"") -> 33
A70: Braes | B70: Hair Mask | G70: 300 | H70: 263.1578947 | I70: 36.84210526 | J70: 300 | K70: Cash | L70: 2020-12-24 | M70: Dec-2020 | N70: =IFERROR($G70*VLOOKUP($A70,'نسب العمولة'!$C$3:$F$800,2,0),"") -> 210 | O70: =IFERROR($G70*VLOOKUP($A70,'نسب العمولة'!$C$3:$F$800,3,0),"") -> 24 | P70: =IFERROR($G70*VLOOKUP($A70,'نسب العمولة'!$C$3:$F$800,4,0),"") -> 66
A71: Indira | B71: SAGE GOLD | C71: IN2143EG | G71: 1900 | H71: 1666.666667 | I71: 233.3333333 | J71: 1900 | K71: Visa | L71: 2020-12-24 | M71: Dec-2020 | N71: =IFERROR($G71*VLOOKUP($A71,'نسب العمولة'!$C$3:$F$800,2,0),"") -> 1330 | O71: =IFERROR($G71*VLOOKUP($A71,'نسب العمولة'!$C$3:$F$800,3,0),"") -> 152 | P71: =IFERROR($G71*VLOOKUP($A71,'نسب العمولة'!$C$3:$F$800,4,0),"") -> 418
A72: Braes | B72: Lip Oil | G72: 130 | H72: 114.0350877 | I72: 15.96491228 | J72: 130 | K72: Cash | L72: 2020-12-24 | M72: Dec-2020 | N72: =IFERROR($G72*VLOOKUP($A72,'نسب العمولة'!$C$3:$F$800,2,0),"") -> 91 | O72: =IFERROR($G72*VLOOKUP($A72,'نسب العمولة'!$C$3:$F$800,3,0),"") -> 10.4 | P72: =IFERROR($G72*VLOOKUP($A72,'نسب العمولة'!$C$3:$F$800,4,0),"") -> 28.6
A73: Braes | B73: Shampoo | G73: 150 | H73: 131.5789474 | I73: 18.42105263 | J73: 150 | K73: Visa | L73: 2020-12-24 | M73: Dec-2020 | N73: =IFERROR($G73*VLOOKUP($A73,'نسب العمولة'!$C$3:$F$800,2,0),"") -> 105 | O73: =IFERROR($G73*VLOOKUP($A73,'نسب العمولة'!$C$3:$F$800,3,0),"") -> 12 | P73: =IFERROR($G73*VLOOKUP($A73,'نسب العمولة'!$C$3:$F$800,4,0),"") -> 33
A74: Braes | B74: Conditionner | G74: 150 | H74: 131.5789474 | I74: 18.42105263 | J74: 150 | K74: Visa | L74: 2020-12-24 | M74: Dec-2020 | N74: =IFERROR($G74*VLOOKUP($A74,'نسب العمولة'!$C$3:$F$800,2,0),"") -> 105 | O74: =IFERROR($G74*VLOOKUP($A74,'نسب العمولة'!$C$3:$F$800,3,0),"") -> 12 | P74: =IFERROR($G74*VLOOKUP($A74,'نسب العمولة'!$C$3:$F$800,4,0),"") -> 33
A75: Braes | B75: Conditionner | G75: 150 | H75: 131.5789474 | I75: 18.42105263 | J75: 150 | K75: Visa | L75: 2020-12-24 | M75: Dec-2020 | N75: =IFERROR($G75*VLOOKUP($A75,'نسب العمولة'!$C$3:$F$800,2,0),"") -> 105 | O75: =IFERROR($G75*VLOOKUP($A75,'نسب العمولة'!$C$3:$F$800,3,0),"") -> 12 | P75: =IFERROR($G75*VLOOKUP($A75,'نسب العمولة'!$C$3:$F$800,4,0),"") -> 33
A76: Earth Owls | B76: Honeymoon Glow Cream | C76: F03 | F76: 130g | G76: 120 | H76: 105.2631579 | I76: 14.73684211 | J76: 120 | K76: Visa | L76: 2020-12-24 | M76: Dec-2020 | N76: =IFERROR($G76*VLOOKUP($A76,'نسب العمولة'!$C$3:$F$800,2,0),"") -> 84 | O76: =IFERROR($G76*VLOOKUP($A76,'نسب العمولة'!$C$3:$F$800,3,0),"") -> 9.6 | P76: =IFERROR($G76*VLOOKUP($A76,'نسب العمولة'!$C$3:$F$800,4,0),"") -> 26.4
A77: Braes | B77: Hydrating Mist Vanila & White Musk | G77: 150 | H77: 131.5789474 | I77: 18.42105263 | J77: 150 | K77: Cash | L77: 2020-12-25 | M77: Dec-2020 | N77: =IFERROR($G77*VLOOKUP($A77,'نسب العمولة'!$C$3:$F$800,2,0),"") -> 105 | O77: =IFERROR($G77*VLOOKUP($A77,'نسب العمولة'!$C$3:$F$800,3,0),"") -> 12 | P77: =IFERROR($G77*VLOOKUP($A77,'نسب العمولة'!$C$3:$F$800,4,0),"") -> 33
A78: Asheya | B78: Celestial: Oval Service Plate | G78: 700 | H78: 614.0350877 | I78: 85.96491228 | J78: 700 | K78: Visa | L78: 2020-12-25 | M78: Dec-2020 | N78: =IFERROR($G78*VLOOKUP($A78,'نسب العمولة'!$C$3:$F$800,2,0),"") -> 490 | O78: =IFERROR($G78*VLOOKUP($A78,'نسب العمولة'!$C$3:$F$800,3,0),"") -> 56 | P78: =IFERROR($G78*VLOOKUP($A78,'نسب العمولة'!$C$3:$F$800,4,0),"") -> 154
A79: Linda Farah | D79: Black | G79: 3500 | H79: 3070.175439 | I79: 429.8245614 | J79: 3500 | K79: Visa | L79: 2020-12-25 | M79: Dec-2020 | N79: =IFERROR($G79*VLOOKUP($A79,'نسب العمولة'!$C$3:$F$800,2,0),"") -> 2450 | O79: =IFERROR($G79*VLOOKUP($A79,'نسب العمولة'!$C$3:$F$800,3,0),"") -> 280 | P79: =IFERROR($G79*VLOOKUP($A79,'نسب العمولة'!$C$3:$F$800,4,0),"") -> 770
A80: Nokoosh | B80: KEM Kilim with Tassels | D80: BlackXOffwite | G80: 2375 | H80: 2083.333333 | I80: 291.6666667 | J80: 2375 | K80: Cash | L80: 2020-12-25 | M80: Dec-2020 | N80: =IFERROR($G80*VLOOKUP($A80,'نسب العمولة'!$C$3:$F$800,2,0),"") -> 1662.5 | O80: =IFERROR($G80*VLOOKUP($A80,'نسب العمولة'!$C$3:$F$800,3,0),"") -> 190 | P80: =IFERROR($G80*VLOOKUP($A80,'نسب العمولة'!$C$3:$F$800,4,0),"") -> 522.5
A81: Nokoosh | B81: SESEN Cushion | D81: Black X Offwite | G81: 580 | H81: 508.7719298 | I81: 71.22807018 | J81: 580 | K81: Cash | L81: 2020-12-25 | M81: Dec-2020 | N81: =IFERROR($G81*VLOOKUP($A81,'نسب العمولة'!$C$3:$F$800,2,0),"") -> 406 | O81: =IFERROR($G81*VLOOKUP($A81,'نسب العمولة'!$C$3:$F$800,3,0),"") -> 46.4 | P81: =IFERROR($G81*VLOOKUP($A81,'نسب العمولة'!$C$3:$F$800,4,0),"") -> 127.6
A82: Nokoosh | B82: SEBA Cushion | D82: Balck X Offwhite | G82: 580 | H82: 508.7719298 | I82: 71.22807018 | J82: 580 | K82: Cash | L82: 2020-12-25 | M82: Dec-2020 | N82: =IFERROR($G82*VLOOKUP($A82,'نسب العمولة'!$C$3:$F$800,2,0),"") -> 406 | O82: =IFERROR($G82*VLOOKUP($A82,'نسب العمولة'!$C$3:$F$800,3,0),"") -> 46.4 | P82: =IFERROR($G82*VLOOKUP($A82,'نسب العمولة'!$C$3:$F$800,4,0),"") -> 127.6
A83: Nokoosh | B83: Black Tajet Cushion | D83: Black X Offwite | G83: 680 | H83: 596.4912281 | I83: 83.50877193 | J83: 680 | K83: Cash | L83: 2020-12-25 | M83: Dec-2020 | N83: =IFERROR($G83*VLOOKUP($A83,'نسب العمولة'!$C$3:$F$800,2,0),"") -> 476 | O83: =IFERROR($G83*VLOOKUP($A83,'نسب العمولة'!$C$3:$F$800,3,0),"") -> 54.4 | P83: =IFERROR($G83*VLOOKUP($A83,'نسب العمولة'!$C$3:$F$800,4,0),"") -> 149.6
A84: Nokoosh | B84: Grey Tajet Cushion | D84: Offwhite X Grey | G84: 680 | H84: 596.4912281 | I84: 83.50877193 | J84: 680 | K84: Cash | L84: 2020-12-25 | M84: Dec-2020 | N84: =IFERROR($G84*VLOOKUP($A84,'نسب العمولة'!$C$3:$F$800,2,0),"") -> 476 | O84: =IFERROR($G84*VLOOKUP($A84,'نسب العمولة'!$C$3:$F$800,3,0),"") -> 54.4 | P84: =IFERROR($G84*VLOOKUP($A84,'نسب العمولة'!$C$3:$F$800,4,0),"") -> 149.6
A85: Candle By Pose. | B85: Small Queen | C85: SQG | D85: Mint green / Lavender | F85: small | G85: 250 | H85: 219.2982456 | I85: 30.70175439 | J85: 250 | K85: Cash | L85: 2020-12-25 | M85: Dec-2020 | N85: =IFERROR($G85*VLOOKUP($A85,'نسب العمولة'!$C$3:$F$800,2,0),"") -> 187.5 | O85: =IFERROR($G85*VLOOKUP($A85,'نسب العمولة'!$C$3:$F$800,3,0),"") -> 20 | P85: =IFERROR($G85*VLOOKUP($A85,'نسب العمولة'!$C$3:$F$800,4,0),"") -> 42.5
A86: Own The Trend | B86: Laurey in Grey | C86: S05510 | D86: Gray | G86: 850 | H86: 745.6140351 | I86: 104.3859649 | J86: 850 | K86: Visa | L86: 2020-12-25 | M86: Dec-2020 | N86: =IFERROR($G86*VLOOKUP($A86,'نسب العمولة'!$C$3:$F$800,2,0),"") -> 595 | O86: =IFERROR($G86*VLOOKUP($A86,'نسب العمولة'!$C$3:$F$800,3,0),"") -> 68 | P86: =IFERROR($G86*VLOOKUP($A86,'نسب العمولة'!$C$3:$F$800,4,0),"") -> 187
A87: Braes | B87: Hair Mask | G87: 300 | H87: 263.1578947 | I87: 36.84210526 | J87: 300 | K87: Visa | L87: 2020-12-25 | M87: Dec-2020 | N87: =IFERROR($G87*VLOOKUP($A87,'نسب العمولة'!$C$3:$F$800,2,0),"") -> 210 | O87: =IFERROR($G87*VLOOKUP($A87,'نسب العمولة'!$C$3:$F$800,3,0),"") -> 24 | P87: =IFERROR($G87*VLOOKUP($A87,'نسب العمولة'!$C$3:$F$800,4,0),"") -> 66
A88: Braes | B88: Shampoo | G88: 150 | H88: 131.5789474 | I88: 18.42105263 | J88: 150 | K88: Visa | L88: 2020-12-25 | M88: Dec-2020 | N88: =IFERROR($G88*VLOOKUP($A88,'نسب العمولة'!$C$3:$F$800,2,0),"") -> 105 | O88: =IFERROR($G88*VLOOKUP($A88,'نسب العمولة'!$C$3:$F$800,3,0),"") -> 12 | P88: =IFERROR($G88*VLOOKUP($A88,'نسب العمولة'!$C$3:$F$800,4,0),"") -> 33
A89: Earth Owls | B89: Milk and honey body scrub | C89: B02 | F89: 500g | G89: 270 | H89: 236.8421053 | I89: 33.15789474 | J89: 270 | K89: Visa | L89: 2020-12-25 | M89: Dec-2020 | N89: =IFERROR($G89*VLOOKUP($A89,'نسب العمولة'!$C$3:$F$800,2,0),"") -> 189 | O89: =IFERROR($G89*VLOOKUP($A89,'نسب العمولة'!$C$3:$F$800,3,0),"") -> 21.6 | P89: =IFERROR($G89*VLOOKUP($A89,'نسب العمولة'!$C$3:$F$800,4,0),"") -> 59.4
A90: Sekmet | G90: 499 | H90: 437.7192982 | I90: 61.28070175 | J90: 499 | K90: Visa | L90: 2020-12-25 | M90: Dec-2020 | N90: =IFERROR($G90*VLOOKUP($A90,'نسب العمولة'!$C$3:$F$800,2,0),"") -> 349.3 | O90: =IFERROR($G90*VLOOKUP($A90,'نسب العمولة'!$C$3:$F$800,3,0),"") -> 39.92 | P90: =IFERROR($G90*VLOOKUP($A90,'نسب العمولة'!$C$3:$F$800,4,0),"") -> 109.78
A91: AMM Home | B91: BELTED MUG | C91: AMMBMG | D91: SPOTTED GREY | F91: 400ML | G91: 285 | H91: 250 | I91: 35 | J91: 285 | K91: Visa | L91: 2020-12-25 | M91: Dec-2020 | N91: =IFERROR($G91*VLOOKUP($A91,'نسب العمولة'!$C$3:$F$800,2,0),"") -> 199.5 | O91: =IFERROR($G91*VLOOKUP($A91,'نسب العمولة'!$C$3:$F$800,3,0),"") -> 22.8 | P91: =IFERROR($G91*VLOOKUP($A91,'نسب العمولة'!$C$3:$F$800,4,0),"") -> 62.7
A92: AMM Home | B92: LONG MUG | C92: AMMLM | D92: DOTTED OLIVE | F92: 300 ML | G92: 260 | H92: 228.0701754 | I92: 31.92982456 | J92: 260 | K92: Visa | L92: 2020-12-25 | M92: Dec-2020 | N92: =IFERROR($G92*VLOOKUP($A92,'نسب العمولة'!$C$3:$F$800,2,0),"") -> 182 | O92: =IFERROR($G92*VLOOKUP($A92,'نسب العمولة'!$C$3:$F$800,3,0),"") -> 20.8 | P92: =IFERROR($G92*VLOOKUP($A92,'نسب العمولة'!$C$3:$F$800,4,0),"") -> 57.2
A93: Own The Trend | B93: Laurey in Rose gold | C93: S05512 | D93: Rose gold | G93: 850 | H93: 745.6140351 | I93: 104.3859649 | J93: 850 | K93: Visa | L93: 2020-12-25 | M93: Dec-2020 | N93: =IFERROR($G93*VLOOKUP($A93,'نسب العمولة'!$C$3:$F$800,2,0),"") -> 595 | O93: =IFERROR($G93*VLOOKUP($A93,'نسب العمولة'!$C$3:$F$800,3,0),"") -> 68 | P93: =IFERROR($G93*VLOOKUP($A93,'نسب العمولة'!$C$3:$F$800,4,0),"") -> 187
A94: By Aziza. | B94: Wishing fountain | C94: R004 | D94: Tapestry | F94: Small | G94: 2090 | H94: 1833.333333 | I94: 256.6666667 | J94: 2090 | K94: Visa | L94: 2020-12-25 | M94: Dec-2020 | N94: =IFERROR($G94*VLOOKUP($A94,'نسب العمولة'!$C$3:$F$800,2,0),"") -> 1567.5 | O94: =IFERROR($G94*VLOOKUP($A94,'نسب العمولة'!$C$3:$F$800,3,0),"") -> 167.2 | P94: =IFERROR($G94*VLOOKUP($A94,'نسب العمولة'!$C$3:$F$800,4,0),"") -> 355.3
A95: ETIKK | B95: FACE & LIPS SCRUB (mini) | C95: LIME - ROSEMARY | G95: 200 | H95: 175.4385965 | I95: 24.56140351 | J95: 200 | K95: Visa | L95: 2020-12-25 | M95: Dec-2020 | N95: =IFERROR($G95*VLOOKUP($A95,'نسب العمولة'!$C$3:$F$800,2,0),"") -> 140 | O95: =IFERROR($G95*VLOOKUP($A95,'نسب العمولة'!$C$3:$F$800,3,0),"") -> 16 | P95: =IFERROR($G95*VLOOKUP($A95,'نسب العمولة'!$C$3:$F$800,4,0),"") -> 44
A96: Earth Owls | B96: Honeymoon Glow Cream | C96: F03 | F96: 130g | G96: 120 | H96: 105.2631579 | I96: 14.73684211 | J96: 120 | K96: Visa | L96: 2020-12-25 | M96: Dec-2020 | N96: =IFERROR($G96*VLOOKUP($A96,'نسب العمولة'!$C$3:$F$800,2,0),"") -> 84 | O96: =IFERROR($G96*VLOOKUP($A96,'نسب العمولة'!$C$3:$F$800,3,0),"") -> 9.6 | P96: =IFERROR($G96*VLOOKUP($A96,'نسب العمولة'!$C$3:$F$800,4,0),"") -> 26.4
A97: Ariika | B97: Face Towel | D97: PlazaBeige | G97: 265 | H97: 232.4561404 | I97: 32.54385965 | J97: 265 | K97: Cash | L97: 2020-12-25 | M97: Dec-2020 | N97: =IFERROR($G97*VLOOKUP($A97,'نسب العمولة'!$C$3:$F$800,2,0),"") -> 185.5 | O97: =IFERROR($G97*VLOOKUP($A97,'نسب العمولة'!$C$3:$F$800,3,0),"") -> 21.2 | P97: =IFERROR($G97*VLOOKUP($A97,'نسب العمولة'!$C$3:$F$800,4,0),"") -> 58.3
A98: Braes | B98: Anti-frizz serum for oily hair | G98: 170 | H98: 149.122807 | I98: 20.87719298 | J98: 170 | K98: Visa | L98: 2020-12-25 | M98: Dec-2020 | N98: =IFERROR($G98*VLOOKUP($A98,'نسب العمولة'!$C$3:$F$800,2,0),"") -> 119 | O98: =IFERROR($G98*VLOOKUP($A98,'نسب العمولة'!$C$3:$F$800,3,0),"") -> 13.6 | P98: =IFERROR($G98*VLOOKUP($A98,'نسب العمولة'!$C$3:$F$800,4,0),"") -> 37.4
A99: Braes | B99: Lip Oil | G99: 130 | H99: 114.0350877 | I99: 15.96491228 | J99: 130 | K99: visa | L99: 2020-12-25 | M99: Dec-2020 | N99: =IFERROR($G99*VLOOKUP($A99,'نسب العمولة'!$C$3:$F$800,2,0),"") -> 91 | O99: =IFERROR($G99*VLOOKUP($A99,'نسب العمولة'!$C$3:$F$800,3,0),"") -> 10.4 | P99: =IFERROR($G99*VLOOKUP($A99,'نسب العمولة'!$C$3:$F$800,4,0),"") -> 28.6
A100: Earth Owls | B100: Honeymoon Glow Cream | G100: 120 | H100: 105.2631579 | I100: 14.73684211 | J100: 120 | K100: Visa | L100: 2020-12-25 | M100: Dec-2020 | N100: =IFERROR($G100*VLOOKUP($A100,'نسب العمولة'!$C$3:$F$800,2,0),"") -> 84 | O100: =IFERROR($G100*VLOOKUP($A100,'نسب العمولة'!$C$3:$F$800,3,0),"") -> 9.6 | P100: =IFERROR($G100*VLOOKUP($A100,'نسب العمولة'!$C$3:$F$800,4,0),"") -> 26.4
A101: Earth Owls | B101: Très Rose Flower Water Vitamin E | G101: 65 | H101: 57.01754386 | I101: 7.98245614 | J101: 65 | K101: Visa | L101: 2020-12-25 | M101: Dec-2020 | N101: =IFERROR($G101*VLOOKUP($A101,'نسب العمولة'!$C$3:$F$800,2,0),"") -> 45.5 | O101: =IFERROR($G101*VLOOKUP($A101,'نسب العمولة'!$C$3:$F$800,3,0),"") -> 5.2 | P101: =IFERROR($G101*VLOOKUP($A101,'نسب العمولة'!$C$3:$F$800,4,0),"") -> 14.3
A102: Candle By Pose. | B102: Small Queen | C102: SQG | D102: Mint green | F102: Small | G102: 250 | H102: 219.2982456 | I102: 30.70175439 | J102: 250 | K102: Visa | L102: 2020-12-26 | M102: Dec-2020 | N102: =IFERROR($G102*VLOOKUP($A102,'نسب العمولة'!$C$3:$F$800,2,0),"") -> 187.5 | O102: =IFERROR($G102*VLOOKUP($A102,'نسب العمولة'!$C$3:$F$800,3,0),"") -> 20 | P102: =IFERROR($G102*VLOOKUP($A102,'نسب العمولة'!$C$3:$F$800,4,0),"") -> 42.5
A103: Candle By Pose. | B103: Small King | C103: SKW | D103: white | F103: Small | G103: 250 | H103: 219.2982456 | I103: 30.70175439 | J103: 250 | K103: Visa | L103: 2020-12-26 | M103: Dec-2020 | N103: =IFERROR($G103*VLOOKUP($A103,'نسب العمولة'!$C$3:$F$800,2,0),"") -> 187.5 | O103: =IFERROR($G103*VLOOKUP($A103,'نسب العمولة'!$C$3:$F$800,3,0),"") -> 20 | P103: =IFERROR($G103*VLOOKUP($A103,'نسب العمولة'!$C$3:$F$800,4,0),"") -> 42.5
A104: HandPick | B104: Long VASE | C104: 4 | D104: White | F104: 22*13cm | G104: 330 | H104: 289.4736842 | I104: 40.52631579 | J104: 330 | K104: Visa | L104: 2020-12-26 | M104: Dec-2020 | N104: =IFERROR($G104*VLOOKUP($A104,'نسب العمولة'!$C$3:$F$800,2,0),"") -> 231 | O104: =IFERROR($G104*VLOOKUP($A104,'نسب العمولة'!$C$3:$F$800,3,0),"") -> 26.4 | P104: =IFERROR($G104*VLOOKUP($A104,'نسب العمولة'!$C$3:$F$800,4,0),"") -> 72.6
A105: By Hand | B105: Salt Candlestick ovel | D105: Salt | F105: 10*5 | G105: 80 | H105: 70.1754386 | I105: 9.824561404 | J105: 80 | K105: Visa | L105: 2020-12-26 | M105: Dec-2020 | N105: =IFERROR($G105*VLOOKUP($A105,'نسب العمولة'!$C$3:$F$800,2,0),"") -> 0 | O105: =IFERROR($G105*VLOOKUP($A105,'نسب العمولة'!$C$3:$F$800,3,0),"") -> 6.4 | P105: =IFERROR($G105*VLOOKUP($A105,'نسب العمولة'!$C$3:$F$800,4,0),"") -> 73.6
A106: By Hand | B106: Salt Candlestick round | D106: Salt | F106: 10*7 | G106: 80 | H106: 70.1754386 | I106: 9.824561404 | J106: 80 | K106: Visa | L106: 2020-12-26 | M106: Dec-2020 | N106: =IFERROR($G106*VLOOKUP($A106,'نسب العمولة'!$C$3:$F$800,2,0),"") -> 0 | O106: =IFERROR($G106*VLOOKUP($A106,'نسب العمولة'!$C$3:$F$800,3,0),"") -> 6.4 | P106: =IFERROR($G106*VLOOKUP($A106,'نسب العمولة'!$C$3:$F$800,4,0),"") -> 73.6
A107: SAAB | B107: Candle Holder | C107: 7.5*9 | D107: white | G107: 250 | H107: 219.2982456 | I107: 30.70175439 | J107: 250 | K107: Visa | L107: 2020-12-26 | M107: Dec-2020 | N107: =IFERROR($G107*VLOOKUP($A107,'نسب العمولة'!$C$3:$F$800,2,0),"") -> 175 | O107: =IFERROR($G107*VLOOKUP($A107,'نسب العمولة'!$C$3:$F$800,3,0),"") -> 20 | P107: =IFERROR($G107*VLOOKUP($A107,'نسب العمولة'!$C$3:$F$800,4,0),"") -> 55
A108: SAAB | B108: Candle Holder | C108: 7.5*10 | D108: white | G108: 250 | H108: 219.2982456 | I108: 30.70175439 | J108: 250 | K108: Visa | L108: 2020-12-26 | M108: Dec-2020 | N108: =IFERROR($G108*VLOOKUP($A108,'نسب العمولة'!$C$3:$F$800,2,0),"") -> 175 | O108: =IFERROR($G108*VLOOKUP($A108,'نسب العمولة'!$C$3:$F$800,3,0),"") -> 20 | P108: =IFERROR($G108*VLOOKUP($A108,'نسب العمولة'!$C$3:$F$800,4,0),"") -> 55
A109: By Hand | B109: Throw kirdasah - Double With Embroidery | D109: Green | F109: 240*240 | G109: 3250 | H109: 2850.877193 | I109: 399.122807 | J109: 3250 | K109: Visa | L109: 2020-12-26 | M109: Dec-2020 | N109: =IFERROR($G109*VLOOKUP($A109,'نسب العمولة'!$C$3:$F$800,2,0),"") -> 0 | O109: =IFERROR($G109*VLOOKUP($A109,'نسب العمولة'!$C$3:$F$800,3,0),"") -> 260 | P109: =IFERROR($G109*VLOOKUP($A109,'نسب العمولة'!$C$3:$F$800,4,0),"") -> 2990
A110: Lush | B110: New medio Sofa | F110: 230 | G110: 5000 | H110: 4385.964912 | I110: 614.0350877 | J110: 5000 | K110: cash | L110: 2020-12-26 | M110: Dec-2020 | N110: =IFERROR($G110*VLOOKUP($A110,'نسب العمولة'!$C$3:$F$800,2,0),"") -> 3500 | O110: =IFERROR($G110*VLOOKUP($A110,'نسب العمولة'!$C$3:$F$800,3,0),"") -> 400 | P110: =IFERROR($G110*VLOOKUP($A110,'نسب العمولة'!$C$3:$F$800,4,0),"") -> 1100
A111: Lush | B111: New medio Sofa | F111: 195 | G111: 21800 | H111: 19122.80702 | I111: 2677.192982 | J111: 21800 | K111: Visa | L111: 2020-12-26 | M111: Dec-2020 | N111: =IFERROR($G111*VLOOKUP($A111,'نسب العمولة'!$C$3:$F$800,2,0),"") -> 15260 | O111: =IFERROR($G111*VLOOKUP($A111,'نسب العمولة'!$C$3:$F$800,3,0),"") -> 1744 | P111: =IFERROR($G111*VLOOKUP($A111,'نسب العمولة'!$C$3:$F$800,4,0),"") -> 4796
A112: Braes | B112: Hydrating Mist Vanila & White Musk | G112: 150 | H112: 131.5789474 | I112: 18.42105263 | J112: 150 | K112: Visa | L112: 2020-12-26 | M112: Dec-2020 | N112: =IFERROR($G112*VLOOKUP($A112,'نسب العمولة'!$C$3:$F$800,2,0),"") -> 105 | O112: =IFERROR($G112*VLOOKUP($A112,'نسب العمولة'!$C$3:$F$800,3,0),"") -> 12 | P112: =IFERROR($G112*VLOOKUP($A112,'نسب العمولة'!$C$3:$F$800,4,0),"") -> 33
A113: Braes | B113: Hydrating Mist Vanila & White Musk | G113: 150 | H113: 131.5789474 | I113: 18.42105263 | J113: 150 | K113: visa | L113: 2020-12-26 | M113: Dec-2020 | N113: =IFERROR($G113*VLOOKUP($A113,'نسب العمولة'!$C$3:$F$800,2,0),"") -> 105 | O113: =IFERROR($G113*VLOOKUP($A113,'نسب العمولة'!$C$3:$F$800,3,0),"") -> 12 | P113: =IFERROR($G113*VLOOKUP($A113,'نسب العمولة'!$C$3:$F$800,4,0),"") -> 33
A114: Braes | B114: Hair Mask | G114: 300 | H114: 263.1578947 | I114: 36.84210526 | J114: 300 | K114: visa | L114: 2020-12-26 | M114: Dec-2020 | N114: =IFERROR($G114*VLOOKUP($A114,'نسب العمولة'!$C$3:$F$800,2,0),"") -> 210 | O114: =IFERROR($G114*VLOOKUP($A114,'نسب العمولة'!$C$3:$F$800,3,0),"") -> 24 | P114: =IFERROR($G114*VLOOKUP($A114,'نسب العمولة'!$C$3:$F$800,4,0),"") -> 66
A115: Earth Owls | B115: Très Rose Flower Water Vitamin E | C115: F01 | F115: 150g | G115: 65 | H115: 57.01754386 | I115: 7.98245614 | J115: 65 | K115: Cash | L115: 2020-12-26 | M115: Dec-2020 | N115: =IFERROR($G115*VLOOKUP($A115,'نسب العمولة'!$C$3:$F$800,2,0),"") -> 45.5 | O115: =IFERROR($G115*VLOOKUP($A115,'نسب العمولة'!$C$3:$F$800,3,0),"") -> 5.2 | P115: =IFERROR($G115*VLOOKUP($A115,'نسب العمولة'!$C$3:$F$800,4,0),"") -> 14.3
A116: Dunia anabtawi | B116: Brown top | C116: DA-FW20-0027 | G116: 2500 | H116: 2192.982456 | I116: 307.0175439 | J116: 2500 | K116: Visa | L116: 2020-12-26 | M116: Dec-2020 | N116: =IFERROR($G116*VLOOKUP($A116,'نسب العمولة'!$C$3:$F$800,2,0),"") -> 1750 | O116: =IFERROR($G116*VLOOKUP($A116,'نسب العمولة'!$C$3:$F$800,3,0),"") -> 200 | P116: =IFERROR($G116*VLOOKUP($A116,'نسب العمولة'!$C$3:$F$800,4,0),"") -> 550
A117: Earth Owls | B117: Hydrating Mist Vanila & White Musk | F117: 150g | G117: 65 | H117: 57.01754386 | I117: 7.98245614 | J117: 65 | K117: Visa | L117: 2020-12-27 | M117: Dec-2020 | N117: =IFERROR($G117*VLOOKUP($A117,'نسب العمولة'!$C$3:$F$800,2,0),"") -> 45.5 | O117: =IFERROR($G117*VLOOKUP($A117,'نسب العمولة'!$C$3:$F$800,3,0),"") -> 5.2 | P117: =IFERROR($G117*VLOOKUP($A117,'نسب العمولة'!$C$3:$F$800,4,0),"") -> 14.3
A118: Earth Owls | B118: Hydrating Mist Vanila & White Musk | F118: 150g | G118: 65 | H118: 57.01754386 | I118: 7.98245614 | J118: 65 | K118: Visa | L118: 2020-12-27 | M118: Dec-2020 | N118: =IFERROR($G118*VLOOKUP($A118,'نسب العمولة'!$C$3:$F$800,2,0),"") -> 45.5 | O118: =IFERROR($G118*VLOOKUP($A118,'نسب العمولة'!$C$3:$F$800,3,0),"") -> 5.2 | P118: =IFERROR($G118*VLOOKUP($A118,'نسب العمولة'!$C$3:$F$800,4,0),"") -> 14.3
A119: Earth Owls | B119: Jade face Mask | C119: F04 | F119: 140g | G119: 180 | H119: 157.8947368 | I119: 22.10526316 | J119: 180 | K119: Cash | L119: 2020-12-27 | M119: Dec-2020 | N119: =IFERROR($G119*VLOOKUP($A119,'نسب العمولة'!$C$3:$F$800,2,0),"") -> 126 | O119: =IFERROR($G119*VLOOKUP($A119,'نسب العمولة'!$C$3:$F$800,3,0),"") -> 14.4 | P119: =IFERROR($G119*VLOOKUP($A119,'نسب العمولة'!$C$3:$F$800,4,0),"") -> 39.6
A120: Sekmet | D120: Beige | F120: small | G120: 480 | H120: 421.0526316 | I120: 58.94736842 | J120: 480 | K120: Cash | L120: 2020-12-27 | M120: Dec-2020 | N120: =IFERROR($G120*VLOOKUP($A120,'نسب العمولة'!$C$3:$F$800,2,0),"") -> 336 | O120: =IFERROR($G120*VLOOKUP($A120,'نسب العمولة'!$C$3:$F$800,3,0),"") -> 38.4 | P120: =IFERROR($G120*VLOOKUP($A120,'نسب العمولة'!$C$3:$F$800,4,0),"") -> 105.6
A121: ETTC. | B121: Wine Decanter with stopper 1000 cc | C121: NU-92143 | G121: 830 | H121: 728.0701754 | I121: 101.9298246 | J121: 830 | K121: Visa | L121: 2020-12-27 | M121: Dec-2020 | N121: =IFERROR($G121*VLOOKUP($A121,'نسب العمولة'!$C$3:$F$800,2,0),"") -> 581 | O121: =IFERROR($G121*VLOOKUP($A121,'نسب العمولة'!$C$3:$F$800,3,0),"") -> 66.4 | P121: =IFERROR($G121*VLOOKUP($A121,'نسب العمولة'!$C$3:$F$800,4,0),"") -> 182.6
A122: ETTC. | B122: Cold Cut Slanted wine Carafe 350mm. | C122: NU-23476 | G122: 830 | H122: 728.0701754 | I122: 101.9298246 | J122: 830 | K122: Visa | L122: 2020-12-27 | M122: Dec-2020 | N122: =IFERROR($G122*VLOOKUP($A122,'نسب العمولة'!$C$3:$F$800,2,0),"") -> 581 | O122: =IFERROR($G122*VLOOKUP($A122,'نسب العمولة'!$C$3:$F$800,3,0),"") -> 66.4 | P122: =IFERROR($G122*VLOOKUP($A122,'نسب العمولة'!$C$3:$F$800,4,0),"") -> 182.6
A123: ETTC. | B123: MIRAGE Red Wine 790 cc. 26.33 oz.*21.7Hcm | C123: NU-66078 | G123: 130 | H123: 114.0350877 | I123: 15.96491228 | J123: 130 | K123: Visa | L123: 2020-12-27 | M123: Dec-2020 | N123: =IFERROR($G123*VLOOKUP($A123,'نسب العمولة'!$C$3:$F$800,2,0),"") -> 91 | O123: =IFERROR($G123*VLOOKUP($A123,'نسب العمولة'!$C$3:$F$800,3,0),"") -> 10.4 | P123: =IFERROR($G123*VLOOKUP($A123,'نسب العمولة'!$C$3:$F$800,4,0),"") -> 28.6
A124: ETTC. | B124: MIRAGE Red Wine 790 cc. 26.33 oz.*21.7Hcm | C124: NU-66078 | G124: 130 | H124: 114.0350877 | I124: 15.96491228 | J124: 130 | K124: Visa | L124: 2020-12-27 | M124: Dec-2020 | N124: =IFERROR($G124*VLOOKUP($A124,'نسب العمولة'!$C$3:$F$800,2,0),"") -> 91 | O124: =IFERROR($G124*VLOOKUP($A124,'نسب العمولة'!$C$3:$F$800,3,0),"") -> 10.4 | P124: =IFERROR($G124*VLOOKUP($A124,'نسب العمولة'!$C$3:$F$800,4,0),"") -> 28.6
A125: ETTC. | B125: MIRAGE Red Wine 790 cc. 26.33 oz.*21.7Hcm | C125: NU-66078 | G125: 130 | H125: 114.0350877 | I125: 15.96491228 | J125: 130 | K125: Visa | L125: 2020-12-27 | M125: Dec-2020 | N125: =IFERROR($G125*VLOOKUP($A125,'نسب العمولة'!$C$3:$F$800,2,0),"") -> 91 | O125: =IFERROR($G125*VLOOKUP($A125,'نسب العمولة'!$C$3:$F$800,3,0),"") -> 10.4 | P125: =IFERROR($G125*VLOOKUP($A125,'نسب العمولة'!$C$3:$F$800,4,0),"") -> 28.6
A126: ETTC. | B126: MIRAGE Red Wine 790 cc. 26.33 oz.*21.7Hcm | C126: NU-66078 | G126: 130 | H126: 114.0350877 | I126: 15.96491228 | J126: 130 | K126: Visa | L126: 2020-12-27 | M126: Dec-2020 | N126: =IFERROR($G126*VLOOKUP($A126,'نسب العمولة'!$C$3:$F$800,2,0),"") -> 91 | O126: =IFERROR($G126*VLOOKUP($A126,'نسب العمولة'!$C$3:$F$800,3,0),"") -> 10.4 | P126: =IFERROR($G126*VLOOKUP($A126,'نسب العمولة'!$C$3:$F$800,4,0),"") -> 28.6
A127: ETTC. | B127: MIRAGE Red Wine 790 cc. 26.33 oz.*21.7Hcm | C127: NU-66078 | G127: 130 | H127: 114.0350877 | I127: 15.96491228 | J127: 130 | K127: Visa | L127: 2020-12-27 | M127: Dec-2020 | N127: =IFERROR($G127*VLOOKUP($A127,'نسب العمولة'!$C$3:$F$800,2,0),"") -> 91 | O127: =IFERROR($G127*VLOOKUP($A127,'نسب العمولة'!$C$3:$F$800,3,0),"") -> 10.4 | P127: =IFERROR($G127*VLOOKUP($A127,'نسب العمولة'!$C$3:$F$800,4,0),"") -> 28.6
A128: ETTC. | B128: MIRAGE Red Wine 790 cc. 26.33 oz.*21.7Hcm | C128: NU-66078 | G128: 130 | H128: 114.0350877 | I128: 15.96491228 | J128: 130 | K128: Visa | L128: 2020-12-27 | M128: Dec-2020 | N128: =IFERROR($G128*VLOOKUP($A128,'نسب العمولة'!$C$3:$F$800,2,0),"") -> 91 | O128: =IFERROR($G128*VLOOKUP($A128,'نسب العمولة'!$C$3:$F$800,3,0),"") -> 10.4 | P128: =IFERROR($G128*VLOOKUP($A128,'نسب العمولة'!$C$3:$F$800,4,0),"") -> 28.6
A129: ETTC. | B129: Water Glass | C129: NU-66093 | G129: 95 | H129: 83.33333333 | I129: 11.66666667 | J129: 95 | K129: Visa | L129: 2020-12-27 | M129: Dec-2020 | N129: =IFERROR($G129*VLOOKUP($A129,'نسب العمولة'!$C$3:$F$800,2,0),"") -> 66.5 | O129: =IFERROR($G129*VLOOKUP($A129,'نسب العمولة'!$C$3:$F$800,3,0),"") -> 7.6 | P129: =IFERROR($G129*VLOOKUP($A129,'نسب العمولة'!$C$3:$F$800,4,0),"") -> 20.9
A130: ETTC. | B130: Water Glass | C130: NU-66093 | G130: 95 | H130: 83.33333333 | I130: 11.66666667 | J130: 95 | K130: Visa | L130: 2020-12-27 | M130: Dec-2020 | N130: =IFERROR($G130*VLOOKUP($A130,'نسب العمولة'!$C$3:$F$800,2,0),"") -> 66.5 | O130: =IFERROR($G130*VLOOKUP($A130,'نسب العمولة'!$C$3:$F$800,3,0),"") -> 7.6 | P130: =IFERROR($G130*VLOOKUP($A130,'نسب العمولة'!$C$3:$F$800,4,0),"") -> 20.9
A131: ETTC. | B131: Water Glass | C131: NU-66093 | G131: 95 | H131: 83.33333333 | I131: 11.66666667 | J131: 95 | K131: Visa | L131: 2020-12-27 | M131: Dec-2020 | N131: =IFERROR($G131*VLOOKUP($A131,'نسب العمولة'!$C$3:$F$800,2,0),"") -> 66.5 | O131: =IFERROR($G131*VLOOKUP($A131,'نسب العمولة'!$C$3:$F$800,3,0),"") -> 7.6 | P131: =IFERROR($G131*VLOOKUP($A131,'نسب العمولة'!$C$3:$F$800,4,0),"") -> 20.9
A132: ETTC. | B132: Water Glass | C132: NU-66093 | G132: 95 | H132: =IFERROR((G132*100/114),"") -> 83.33333333 | I132: =IFERROR((H132*14/100),"") -> 11.66666667 | J132: =IFERROR((H132+I132),"") -> 95 | K132: Visa | L132: 2020-12-27 | M132: =TEXT(L132,"mmm-YYYY") -> Dec-2020 | N132: =IFERROR($G132*VLOOKUP($A132,'نسب العمولة'!$C$3:$F$800,2,0),"") -> 66.5 | O132: =IFERROR($G132*VLOOKUP($A132,'نسب العمولة'!$C$3:$F$800,3,0),"") -> 7.6 | P132: =IFERROR($G132*VLOOKUP($A132,'نسب العمولة'!$C$3:$F$800,4,0),"") -> 20.9
A133: ETTC. | B133: Water Glass | C133: NU-66093 | G133: 95 | H133: 83.33333333 | I133: 11.66666667 | J133: 95 | K133: Visa | L133: 2020-12-27 | M133: Dec-2020 | N133: =IFERROR($G133*VLOOKUP($A133,'نسب العمولة'!$C$3:$F$800,2,0),"") -> 66.5 | O133: =IFERROR($G133*VLOOKUP($A133,'نسب العمولة'!$C$3:$F$800,3,0),"") -> 7.6 | P133: =IFERROR($G133*VLOOKUP($A133,'نسب العمولة'!$C$3:$F$800,4,0),"") -> 20.9
A134: ETTC. | B134: Water Glass | C134: NU-66093 | G134: 95 | H134: 83.33333333 | I134: 11.66666667 | J134: 95 | K134: Visa | L134: 2020-12-27 | M134: Dec-2020 | N134: =IFERROR($G134*VLOOKUP($A134,'نسب العمولة'!$C$3:$F$800,2,0),"") -> 66.5 | O134: =IFERROR($G134*VLOOKUP($A134,'نسب العمولة'!$C$3:$F$800,3,0),"") -> 7.6 | P134: =IFERROR($G134*VLOOKUP($A134,'نسب العمولة'!$C$3:$F$800,4,0),"") -> 20.9
A135: Eunoia | B135: Dreamy Vase 1 | C135: DRV-011 | D135: Black | F135: Height: 25 cm | G135: 500 | H135: 438.5964912 | I135: 61.40350877 | J135: 500 | K135: Visa | L135: 2020-12-27 | M135: Dec-2020 | N135: =IFERROR($G135*VLOOKUP($A135,'نسب العمولة'!$C$3:$F$800,2,0),"") -> 350 | O135: =IFERROR($G135*VLOOKUP($A135,'نسب العمولة'!$C$3:$F$800,3,0),"") -> 40 | P135: =IFERROR($G135*VLOOKUP($A135,'نسب العمولة'!$C$3:$F$800,4,0),"") -> 110
A136: Asheya | B136: Celestial: 32 cm bowl | G136: 900 | H136: 789.4736842 | I136: 110.5263158 | J136: 900 | K136: Visa | L136: 2020-12-27 | M136: Dec-2020 | N136: =IFERROR($G136*VLOOKUP($A136,'نسب العمولة'!$C$3:$F$800,2,0),"") -> 630 | O136: =IFERROR($G136*VLOOKUP($A136,'نسب العمولة'!$C$3:$F$800,3,0),"") -> 72 | P136: =IFERROR($G136*VLOOKUP($A136,'نسب العمولة'!$C$3:$F$800,4,0),"") -> 198
A137: Sekmet | D137: White | F137: small | G137: 499 | H137: 437.7192982 | I137: 61.28070175 | J137: 499 | K137: Cash | L137: 2020-12-27 | M137: Dec-2020 | N137: =IFERROR($G137*VLOOKUP($A137,'نسب العمولة'!$C$3:$F$800,2,0),"") -> 349.3 | O137: =IFERROR($G137*VLOOKUP($A137,'نسب العمولة'!$C$3:$F$800,3,0),"") -> 39.92 | P137: =IFERROR($G137*VLOOKUP($A137,'نسب العمولة'!$C$3:$F$800,4,0),"") -> 109.78
A138: TIYI | B138: Dress | D138: Black | F138: Medium | G138: 899 | H138: 788.5964912 | I138: 110.4035088 | J138: 899 | K138: Visa | L138: 2020-12-27 | M138: Dec-2020 | N138: =IFERROR($G138*VLOOKUP($A138,'نسب العمولة'!$C$3:$F$800,2,0),"") -> 674.25 | O138: =IFERROR($G138*VLOOKUP($A138,'نسب العمولة'!$C$3:$F$800,3,0),"") -> 71.92 | P138: =IFERROR($G138*VLOOKUP($A138,'نسب العمولة'!$C$3:$F$800,4,0),"") -> 152.83
A139: ETIKK | B139: AROMATHERAPY Pillow mist | F139: 50ml | G139: 120 | H139: 105.2631579 | I139: 14.73684211 | J139: 120 | K139: Cash | L139: 2020-12-28 | M139: Dec-2020 | N139: =IFERROR($G139*VLOOKUP($A139,'نسب العمولة'!$C$3:$F$800,2,0),"") -> 84 | O139: =IFERROR($G139*VLOOKUP($A139,'نسب العمولة'!$C$3:$F$800,3,0),"") -> 9.6 | P139: =IFERROR($G139*VLOOKUP($A139,'نسب العمولة'!$C$3:$F$800,4,0),"") -> 26.4
A140: SAAB | B140: marble | D140: white | F140: 22*12 | G140: 250 | H140: 219.2982456 | I140: 30.70175439 | J140: 250 | K140: Visa | L140: 2020-12-28 | M140: Dec-2020 | N140: =IFERROR($G140*VLOOKUP($A140,'نسب العمولة'!$C$3:$F$800,2,0),"") -> 175 | O140: =IFERROR($G140*VLOOKUP($A140,'نسب العمولة'!$C$3:$F$800,3,0),"") -> 20 | P140: =IFERROR($G140*VLOOKUP($A140,'نسب العمولة'!$C$3:$F$800,4,0),"") -> 55
A141: SAAB | B141: marble | D141: white | F141: 27*15 | G141: 350 | H141: 307.0175439 | I141: 42.98245614 | J141: 350 | K141: Visa | L141: 2020-12-28 | M141: Dec-2020 | N141: =IFERROR($G141*VLOOKUP($A141,'نسب العمولة'!$C$3:$F$800,2,0),"") -> 245 | O141: =IFERROR($G141*VLOOKUP($A141,'نسب العمولة'!$C$3:$F$800,3,0),"") -> 28 | P141: =IFERROR($G141*VLOOKUP($A141,'نسب العمولة'!$C$3:$F$800,4,0),"") -> 77
A142: SAAB | B142: marble | D142: white | F142: 40*20 | G142: 650 | H142: 570.1754386 | I142: 79.8245614 | J142: 650 | K142: Visa | L142: 2020-12-28 | M142: Dec-2020 | N142: =IFERROR($G142*VLOOKUP($A142,'نسب العمولة'!$C$3:$F$800,2,0),"") -> 455 | O142: =IFERROR($G142*VLOOKUP($A142,'نسب العمولة'!$C$3:$F$800,3,0),"") -> 52 | P142: =IFERROR($G142*VLOOKUP($A142,'نسب العمولة'!$C$3:$F$800,4,0),"") -> 143
A143: SAAB | B143: onyx tray | D143: caramel | G143: 500 | H143: 438.5964912 | I143: 61.40350877 | J143: 500 | K143: Cash | L143: 2020-12-28 | M143: Dec-2020 | N143: =IFERROR($G143*VLOOKUP($A143,'نسب العمولة'!$C$3:$F$800,2,0),"") -> 350 | O143: =IFERROR($G143*VLOOKUP($A143,'نسب العمولة'!$C$3:$F$800,3,0),"") -> 40 | P143: =IFERROR($G143*VLOOKUP($A143,'نسب العمولة'!$C$3:$F$800,4,0),"") -> 110
A144: Kay | D144: Beige | F144: Large | G144: 1600 | H144: 1403.508772 | I144: 196.4912281 | J144: 1600 | K144: Cash | L144: 2020-12-28 | M144: Dec-2020 | N144: =IFERROR($G144*VLOOKUP($A144,'نسب العمولة'!$C$3:$F$800,2,0),"") -> 1120 | O144: =IFERROR($G144*VLOOKUP($A144,'نسب العمولة'!$C$3:$F$800,3,0),"") -> 128 | P144: =IFERROR($G144*VLOOKUP($A144,'نسب العمولة'!$C$3:$F$800,4,0),"") -> 352
A145: Aliel | B145: Burgundy horra | D145: Burgundy | G145: 3000 | H145: 2631.578947 | I145: 368.4210526 | J145: 3000 | K145: Cash | L145: 2020-12-29 | M145: Dec-2020 | N145: =IFERROR($G145*VLOOKUP($A145,'نسب العمولة'!$C$3:$F$800,2,0),"") -> 2100 | O145: =IFERROR($G145*VLOOKUP($A145,'نسب العمولة'!$C$3:$F$800,3,0),"") -> 240 | P145: =IFERROR($G145*VLOOKUP($A145,'نسب العمولة'!$C$3:$F$800,4,0),"") -> 660
A146: SAAB | B146: QJ-53161 | G146: 4300 | H146: 3771.929825 | I146: 528.0701754 | J146: 4300 | K146: Cash | L146: 2020-12-29 | M146: Dec-2020 | N146: =IFERROR($G146*VLOOKUP($A146,'نسب العمولة'!$C$3:$F$800,2,0),"") -> 3010 | O146: =IFERROR($G146*VLOOKUP($A146,'نسب العمولة'!$C$3:$F$800,3,0),"") -> 344 | P146: =IFERROR($G146*VLOOKUP($A146,'نسب العمولة'!$C$3:$F$800,4,0),"") -> 946
A147: ETTC. | B147: Carafe + 2pcs tumbler | C147: NU-92706 | G147: 719 | H147: 630.7017544 | I147: 88.29824561 | J147: 719 | K147: Cash | L147: 2020-12-29 | M147: Dec-2020 | N147: =IFERROR($G147*VLOOKUP($A147,'نسب العمولة'!$C$3:$F$800,2,0),"") -> 503.3 | O147: =IFERROR($G147*VLOOKUP($A147,'نسب العمولة'!$C$3:$F$800,3,0),"") -> 57.52 | P147: =IFERROR($G147*VLOOKUP($A147,'نسب العمولة'!$C$3:$F$800,4,0),"") -> 158.18
A148: ETTC. | B148: Mirage - long drink | C148: NU-64002 | G148: 78 | H148: 68.42105263 | I148: 9.578947368 | J148: 78 | K148: Cash | L148: 2020-12-29 | M148: Dec-2020 | N148: =IFERROR($G148*VLOOKUP($A148,'نسب العمولة'!$C$3:$F$800,2,0),"") -> 54.6 | O148: =IFERROR($G148*VLOOKUP($A148,'نسب العمولة'!$C$3:$F$800,3,0),"") -> 6.24 | P148: =IFERROR($G148*VLOOKUP($A148,'نسب العمولة'!$C$3:$F$800,4,0),"") -> 17.16
A149: ETTC. | B149: Mirage - long drink | C149: NU-64002 | G149: 78 | H149: 68.42105263 | I149: 9.578947368 | J149: 78 | K149: Cash | L149: 2020-12-29 | M149: Dec-2020 | N149: =IFERROR($G149*VLOOKUP($A149,'نسب العمولة'!$C$3:$F$800,2,0),"") -> 54.6 | O149: =IFERROR($G149*VLOOKUP($A149,'نسب العمولة'!$C$3:$F$800,3,0),"") -> 6.24 | P149: =IFERROR($G149*VLOOKUP($A149,'نسب العمولة'!$C$3:$F$800,4,0),"") -> 17.16
A150: ETTC. | B150: Mirage - long drink | C150: NU-64002 | G150: 78 | H150: 68.42105263 | I150: 9.578947368 | J150: 78 | K150: Cash | L150: 2020-12-29 | M150: Dec-2020 | N150: =IFERROR($G150*VLOOKUP($A150,'نسب العمولة'!$C$3:$F$800,2,0),"") -> 54.6 | O150: =IFERROR($G150*VLOOKUP($A150,'نسب العمولة'!$C$3:$F$800,3,0),"") -> 6.24 | P150: =IFERROR($G150*VLOOKUP($A150,'نسب العمولة'!$C$3:$F$800,4,0),"") -> 17.16
A151: ETTC. | B151: Mirage - long drink | C151: NU-64002 | G151: 78 | H151: 68.42105263 | I151: 9.578947368 | J151: 78 | K151: Cash | L151: 2020-12-29 | M151: Dec-2020 | N151: =IFERROR($G151*VLOOKUP($A151,'نسب العمولة'!$C$3:$F$800,2,0),"") -> 54.6 | O151: =IFERROR($G151*VLOOKUP($A151,'نسب العمولة'!$C$3:$F$800,3,0),"") -> 6.24 | P151: =IFERROR($G151*VLOOKUP($A151,'نسب العمولة'!$C$3:$F$800,4,0),"") -> 17.16
A152: ETTC. | B152: Mirage - long drink | C152: NU-64002 | G152: 78 | H152: 68.42105263 | I152: 9.578947368 | J152: 78 | K152: Cash | L152: 2020-12-29 | M152: Dec-2020 | N152: =IFERROR($G152*VLOOKUP($A152,'نسب العمولة'!$C$3:$F$800,2,0),"") -> 54.6 | O152: =IFERROR($G152*VLOOKUP($A152,'نسب العمولة'!$C$3:$F$800,3,0),"") -> 6.24 | P152: =IFERROR($G152*VLOOKUP($A152,'نسب العمولة'!$C$3:$F$800,4,0),"") -> 17.16
A153: ETTC. | B153: Mirage - long drink | C153: NU-64002 | G153: 78 | H153: 68.42105263 | I153: 9.578947368 | J153: 78 | K153: Cash | L153: 2020-12-29 | M153: Dec-2020 | N153: =IFERROR($G153*VLOOKUP($A153,'نسب العمولة'!$C$3:$F$800,2,0),"") -> 54.6 | O153: =IFERROR($G153*VLOOKUP($A153,'نسب العمولة'!$C$3:$F$800,3,0),"") -> 6.24 | P153: =IFERROR($G153*VLOOKUP($A153,'نسب العمولة'!$C$3:$F$800,4,0),"") -> 17.16
A154: ETTC. | B154: Mirage - long drink | C154: NU-64002 | G154: 78 | H154: 68.42105263 | I154: 9.578947368 | J154: 78 | K154: Cash | L154: 2020-12-29 | M154: Dec-2020 | N154: =IFERROR($G154*VLOOKUP($A154,'نسب العمولة'!$C$3:$F$800,2,0),"") -> 54.6 | O154: =IFERROR($G154*VLOOKUP($A154,'نسب العمولة'!$C$3:$F$800,3,0),"") -> 6.24 | P154: =IFERROR($G154*VLOOKUP($A154,'نسب العمولة'!$C$3:$F$800,4,0),"") -> 17.16
A155: ETTC. | B155: Mirage - long drink | C155: NU-64002 | G155: 78 | H155: 68.42105263 | I155: 9.578947368 | J155: 78 | K155: Cash | L155: 2020-12-29 | M155: Dec-2020 | N155: =IFERROR($G155*VLOOKUP($A155,'نسب العمولة'!$C$3:$F$800,2,0),"") -> 54.6 | O155: =IFERROR($G155*VLOOKUP($A155,'نسب العمولة'!$C$3:$F$800,3,0),"") -> 6.24 | P155: =IFERROR($G155*VLOOKUP($A155,'نسب العمولة'!$C$3:$F$800,4,0),"") -> 17.16
A156: ETTC. | B156: Mirage-Whiskey | C156: NU-64001 | G156: 78 | H156: 68.42105263 | I156: 9.578947368 | J156: 78 | K156: Cash | L156: 2020-12-29 | M156: Dec-2020 | N156: =IFERROR($G156*VLOOKUP($A156,'نسب العمولة'!$C$3:$F$800,2,0),"") -> 54.6 | O156: =IFERROR($G156*VLOOKUP($A156,'نسب العمولة'!$C$3:$F$800,3,0),"") -> 6.24 | P156: =IFERROR($G156*VLOOKUP($A156,'نسب العمولة'!$C$3:$F$800,4,0),"") -> 17.16
A157: ETTC. | B157: Mirage-Whiskey | C157: NU-64001 | G157: 78 | H157: 68.42105263 | I157: 9.578947368 | J157: 78 | K157: Cash | L157: 2020-12-29 | M157: Dec-2020 | N157: =IFERROR($G157*VLOOKUP($A157,'نسب العمولة'!$C$3:$F$800,2,0),"") -> 54.6 | O157: =IFERROR($G157*VLOOKUP($A157,'نسب العمولة'!$C$3:$F$800,3,0),"") -> 6.24 | P157: =IFERROR($G157*VLOOKUP($A157,'نسب العمولة'!$C$3:$F$800,4,0),"") -> 17.16
A158: ETTC. | B158: Mirage-Whiskey | C158: NU-64001 | G158: 78 | H158: 68.42105263 | I158: 9.578947368 | J158: 78 | K158: Cash | L158: 2020-12-29 | M158: Dec-2020 | N158: =IFERROR($G158*VLOOKUP($A158,'نسب العمولة'!$C$3:$F$800,2,0),"") -> 54.6 | O158: =IFERROR($G158*VLOOKUP($A158,'نسب العمولة'!$C$3:$F$800,3,0),"") -> 6.24 | P158: =IFERROR($G158*VLOOKUP($A158,'نسب العمولة'!$C$3:$F$800,4,0),"") -> 17.16
A159: ETTC. | B159: Mirage-Whiskey | C159: NU-64001 | G159: 78 | H159: 68.42105263 | I159: 9.578947368 | J159: 78 | K159: Cash | L159: 2020-12-29 | M159: Dec-2020 | N159: =IFERROR($G159*VLOOKUP($A159,'نسب العمولة'!$C$3:$F$800,2,0),"") -> 54.6 | O159: =IFERROR($G159*VLOOKUP($A159,'نسب العمولة'!$C$3:$F$800,3,0),"") -> 6.24 | P159: =IFERROR($G159*VLOOKUP($A159,'نسب العمولة'!$C$3:$F$800,4,0),"") -> 17.16
A160: ETTC. | B160: Mirage-Whiskey | C160: NU-64001 | G160: 78 | H160: 68.42105263 | I160: 9.578947368 | J160: 78 | K160: Cash | L160: 2020-12-29 | M160: Dec-2020 | N160: =IFERROR($G160*VLOOKUP($A160,'نسب العمولة'!$C$3:$F$800,2,0),"") -> 54.6 | O160: =IFERROR($G160*VLOOKUP($A160,'نسب العمولة'!$C$3:$F$800,3,0),"") -> 6.24 | P160: =IFERROR($G160*VLOOKUP($A160,'نسب العمولة'!$C$3:$F$800,4,0),"") -> 17.16
A161: ETTC. | B161: Mirage-Whiskey | C161: NU-64001 | G161: 78 | H161: 68.42105263 | I161: 9.578947368 | J161: 78 | K161: Cash | L161: 2020-12-29 | M161: Dec-2020 | N161: =IFERROR($G161*VLOOKUP($A161,'نسب العمولة'!$C$3:$F$800,2,0),"") -> 54.6 | O161: =IFERROR($G161*VLOOKUP($A161,'نسب العمولة'!$C$3:$F$800,3,0),"") -> 6.24 | P161: =IFERROR($G161*VLOOKUP($A161,'نسب العمولة'!$C$3:$F$800,4,0),"") -> 17.16
A162: ETTC. | B162: Mirage-Whiskey | C162: NU-64001 | G162: 78 | H162: 68.42105263 | I162: 9.578947368 | J162: 78 | K162: Cash | L162: 2020-12-29 | M162: Dec-2020 | N162: =IFERROR($G162*VLOOKUP($A162,'نسب العمولة'!$C$3:$F$800,2,0),"") -> 54.6 | O162: =IFERROR($G162*VLOOKUP($A162,'نسب العمولة'!$C$3:$F$800,3,0),"") -> 6.24 | P162: =IFERROR($G162*VLOOKUP($A162,'نسب العمولة'!$C$3:$F$800,4,0),"") -> 17.16
A163: ETTC. | B163: Mirage-Whiskey | C163: NU-64001 | G163: 78 | H163: 68.42105263 | I163: 9.578947368 | J163: 78 | K163: Cash | L163: 2020-12-29 | M163: Dec-2020 | N163: =IFERROR($G163*VLOOKUP($A163,'نسب العمولة'!$C$3:$F$800,2,0),"") -> 54.6 | O163: =IFERROR($G163*VLOOKUP($A163,'نسب العمولة'!$C$3:$F$800,3,0),"") -> 6.24 | P163: =IFERROR($G163*VLOOKUP($A163,'نسب العمولة'!$C$3:$F$800,4,0),"") -> 17.16
A164: ETIKK | B164: LIMITED EDITION EMERALD GREEN CANDLE | G164: 800 | H164: 701.754386 | I164: 98.24561404 | J164: 800 | K164: Visa | L164: 2020-12-29 | M164: Dec-2020 | N164: =IFERROR($G164*VLOOKUP($A164,'نسب العمولة'!$C$3:$F$800,2,0),"") -> 560 | O164: =IFERROR($G164*VLOOKUP($A164,'نسب العمولة'!$C$3:$F$800,3,0),"") -> 64 | P164: =IFERROR($G164*VLOOKUP($A164,'نسب العمولة'!$C$3:$F$800,4,0),"") -> 176
A165: Carpet | C165: carp2 | D165: Purple | E165: Deposit | F165: 235*155 | G165: 1000 | H165: 877.1929825 | I165: 122.8070175 | J165: 1000 | K165: Visa | L165: 2020-12-29 | M165: Dec-2020 | N165: =IFERROR($G165*VLOOKUP($A165,'نسب العمولة'!$C$3:$F$800,2,0),"") -> 0 | O165: =IFERROR($G165*VLOOKUP($A165,'نسب العمولة'!$C$3:$F$800,3,0),"") -> 80 | P165: =IFERROR($G165*VLOOKUP($A165,'نسب العمولة'!$C$3:$F$800,4,0),"") -> 920
A166: Braes | B166: Shampoo | G166: 150 | H166: 131.5789474 | I166: 18.42105263 | J166: 150 | K166: Visa | L166: 2020-12-29 | M166: Dec-2020 | N166: =IFERROR($G166*VLOOKUP($A166,'نسب العمولة'!$C$3:$F$800,2,0),"") -> 105 | O166: =IFERROR($G166*VLOOKUP($A166,'نسب العمولة'!$C$3:$F$800,3,0),"") -> 12 | P166: =IFERROR($G166*VLOOKUP($A166,'نسب العمولة'!$C$3:$F$800,4,0),"") -> 33
A167: Braes | B167: Lip Oil | G167: 130 | H167: 114.0350877 | I167: 15.96491228 | J167: 130 | K167: Visa | L167: 2020-12-29 | M167: Dec-2020 | N167: =IFERROR($G167*VLOOKUP($A167,'نسب العمولة'!$C$3:$F$800,2,0),"") -> 91 | O167: =IFERROR($G167*VLOOKUP($A167,'نسب العمولة'!$C$3:$F$800,3,0),"") -> 10.4 | P167: =IFERROR($G167*VLOOKUP($A167,'نسب العمولة'!$C$3:$F$800,4,0),"") -> 28.6
A168: Earth Owls | B168: Jade face Mask | C168: F04 | F168: 140g | G168: 180 | H168: 157.8947368 | I168: 22.10526316 | J168: 180 | K168: Visa | L168: 2020-12-29 | M168: Dec-2020 | N168: =IFERROR($G168*VLOOKUP($A168,'نسب العمولة'!$C$3:$F$800,2,0),"") -> 126 | O168: =IFERROR($G168*VLOOKUP($A168,'نسب العمولة'!$C$3:$F$800,3,0),"") -> 14.4 | P168: =IFERROR($G168*VLOOKUP($A168,'نسب العمولة'!$C$3:$F$800,4,0),"") -> 39.6
A169: Earth Owls | B169: Cherry&stawberry body scrub | C169: B01 | F169: 500g | G169: 270 | H169: 236.8421053 | I169: 33.15789474 | J169: 270 | K169: Visa | L169: 2020-12-29 | M169: Dec-2020 | N169: =IFERROR($G169*VLOOKUP($A169,'نسب العمولة'!$C$3:$F$800,2,0),"") -> 189 | O169: =IFERROR($G169*VLOOKUP($A169,'نسب العمولة'!$C$3:$F$800,3,0),"") -> 21.6 | P169: =IFERROR($G169*VLOOKUP($A169,'نسب العمولة'!$C$3:$F$800,4,0),"") -> 59.4
A170: AMM Home | B170: BELTED MUG | C170: Ammbmb | D170: Black | F170: 400ml | G170: 285 | H170: 250 | I170: 35 | J170: 285 | K170: Visa | L170: 2020-12-29 | M170: Dec-2020 | N170: =IFERROR($G170*VLOOKUP($A170,'نسب العمولة'!$C$3:$F$800,2,0),"") -> 199.5 | O170: =IFERROR($G170*VLOOKUP($A170,'نسب العمولة'!$C$3:$F$800,3,0),"") -> 22.8 | P170: =IFERROR($G170*VLOOKUP($A170,'نسب العمولة'!$C$3:$F$800,4,0),"") -> 62.7
A171: Braes | B171: Hair Mask | G171: 300 | H171: 263.1578947 | I171: 36.84210526 | J171: 300 | K171: Visa | L171: 2020-12-29 | M171: Dec-2020 | N171: =IFERROR($G171*VLOOKUP($A171,'نسب العمولة'!$C$3:$F$800,2,0),"") -> 210 | O171: =IFERROR($G171*VLOOKUP($A171,'نسب العمولة'!$C$3:$F$800,3,0),"") -> 24 | P171: =IFERROR($G171*VLOOKUP($A171,'نسب العمولة'!$C$3:$F$800,4,0),"") -> 66
A172: Ariika | B172: Face towel | E172: Beige | G172: 265 | H172: 232.4561404 | I172: 32.54385965 | J172: 265 | K172: Visa | L172: 2020-12-29 | M172: Dec-2020 | N172: =IFERROR($G172*VLOOKUP($A172,'نسب العمولة'!$C$3:$F$800,2,0),"") -> 185.5 | O172: =IFERROR($G172*VLOOKUP($A172,'نسب العمولة'!$C$3:$F$800,3,0),"") -> 21.2 | P172: =IFERROR($G172*VLOOKUP($A172,'نسب العمولة'!$C$3:$F$800,4,0),"") -> 58.3
A173: Ariika | B173: Face towel | E173: Beige | G173: 265 | H173: 232.4561404 | I173: 32.54385965 | J173: 265 | K173: Visa | L173: 2020-12-29 | M173: Dec-2020 | N173: =IFERROR($G173*VLOOKUP($A173,'نسب العمولة'!$C$3:$F$800,2,0),"") -> 185.5 | O173: =IFERROR($G173*VLOOKUP($A173,'نسب العمولة'!$C$3:$F$800,3,0),"") -> 21.2 | P173: =IFERROR($G173*VLOOKUP($A173,'نسب العمولة'!$C$3:$F$800,4,0),"") -> 58.3
A174: Ariika | B174: Bath Towel | E174: Grey | G174: 247 | H174: 216.6666667 | I174: 30.33333333 | J174: 247 | K174: Visa | L174: 2020-12-29 | M174: Dec-2020 | N174: =IFERROR($G174*VLOOKUP($A174,'نسب العمولة'!$C$3:$F$800,2,0),"") -> 172.9 | O174: =IFERROR($G174*VLOOKUP($A174,'نسب العمولة'!$C$3:$F$800,3,0),"") -> 19.76 | P174: =IFERROR($G174*VLOOKUP($A174,'نسب العمولة'!$C$3:$F$800,4,0),"") -> 54.34
A175: ETTC. | B175: MIRAGE Red Wine 790 cc. 26.33 oz.*21.7Hcm | C175: NU-66093 | G175: 126 | H175: 110.5263158 | I175: 15.47368421 | J175: 126 | K175: Visa | L175: 2020-12-29 | M175: Dec-2020 | N175: =IFERROR($G175*VLOOKUP($A175,'نسب العمولة'!$C$3:$F$800,2,0),"") -> 88.2 | O175: =IFERROR($G175*VLOOKUP($A175,'نسب العمولة'!$C$3:$F$800,3,0),"") -> 10.08 | P175: =IFERROR($G175*VLOOKUP($A175,'نسب العمولة'!$C$3:$F$800,4,0),"") -> 27.72
A176: ETTC. | B176: MIRAGE Red Wine 790 cc. 26.33 oz.*21.7Hcm | C176: NU-66093 | G176: 126 | H176: 110.5263158 | I176: 15.47368421 | J176: 126 | K176: Visa | L176: 2020-12-29 | M176: Dec-2020 | N176: =IFERROR($G176*VLOOKUP($A176,'نسب العمولة'!$C$3:$F$800,2,0),"") -> 88.2 | O176: =IFERROR($G176*VLOOKUP($A176,'نسب العمولة'!$C$3:$F$800,3,0),"") -> 10.08 | P176: =IFERROR($G176*VLOOKUP($A176,'نسب العمولة'!$C$3:$F$800,4,0),"") -> 27.72
A177: Sekmet | E177: White | G177: 480 | H177: 421.0526316 | I177: 58.94736842 | J177: 480 | K177: Visa | L177: 2020-12-30 | M177: Dec-2020 | N177: =IFERROR($G177*VLOOKUP($A177,'نسب العمولة'!$C$3:$F$800,2,0),"") -> 336 | O177: =IFERROR($G177*VLOOKUP($A177,'نسب العمولة'!$C$3:$F$800,3,0),"") -> 38.4 | P177: =IFERROR($G177*VLOOKUP($A177,'نسب العمولة'!$C$3:$F$800,4,0),"") -> 105.6
A178: Sekmet | E178: Beige | G178: 480 | H178: 421.0526316 | I178: 58.94736842 | J178: 480 | K178: Visa | L178: 2020-12-30 | M178: Dec-2020 | N178: =IFERROR($G178*VLOOKUP($A178,'نسب العمولة'!$C$3:$F$800,2,0),"") -> 336 | O178: =IFERROR($G178*VLOOKUP($A178,'نسب العمولة'!$C$3:$F$800,3,0),"") -> 38.4 | P178: =IFERROR($G178*VLOOKUP($A178,'نسب العمولة'!$C$3:$F$800,4,0),"") -> 105.6
A179: Indira | B179: MERIAM | C179: IN2071E | G179: 1200 | H179: 1052.631579 | I179: 147.3684211 | J179: 1200 | K179: Visa | L179: 2020-12-30 | M179: Dec-2020 | N179: =IFERROR($G179*VLOOKUP($A179,'نسب العمولة'!$C$3:$F$800,2,0),"") -> 840 | O179: =IFERROR($G179*VLOOKUP($A179,'نسب العمولة'!$C$3:$F$800,3,0),"") -> 96 | P179: =IFERROR($G179*VLOOKUP($A179,'نسب العمولة'!$C$3:$F$800,4,0),"") -> 264
A180: Asheya | B180: Celestial | D180: White with gold | G180: 5300 | H180: 4649.122807 | I180: 650.877193 | J180: 5300 | K180: Visa | L180: 2020-12-31 | M180: Dec-2020 | N180: =IFERROR($G180*VLOOKUP($A180,'نسب العمولة'!$C$3:$F$800,2,0),"") -> 3710 | O180: =IFERROR($G180*VLOOKUP($A180,'نسب العمولة'!$C$3:$F$800,3,0),"") -> 424 | P180: =IFERROR($G180*VLOOKUP($A180,'نسب العمولة'!$C$3:$F$800,4,0),"") -> 1166
A181: Asheya | B181: Celestial | D181: White with gold | G181: 5300 | H181: 4649.122807 | I181: 650.877193 | J181: 5300 | K181: Visa | L181: 2020-12-31 | M181: Dec-2020 | N181: =IFERROR($G181*VLOOKUP($A181,'نسب العمولة'!$C$3:$F$800,2,0),"") -> 3710 | O181: =IFERROR($G181*VLOOKUP($A181,'نسب العمولة'!$C$3:$F$800,3,0),"") -> 424 | P181: =IFERROR($G181*VLOOKUP($A181,'نسب العمولة'!$C$3:$F$800,4,0),"") -> 1166
A182: Asheya | B182: Celestial:32cm bowl | D182: White with gold | G182: 900 | H182: 789.4736842 | I182: 110.5263158 | J182: 900 | K182: Visa | L182: 2020-12-31 | M182: Dec-2020 | N182: =IFERROR($G182*VLOOKUP($A182,'نسب العمولة'!$C$3:$F$800,2,0),"") -> 630 | O182: =IFERROR($G182*VLOOKUP($A182,'نسب العمولة'!$C$3:$F$800,3,0),"") -> 72 | P182: =IFERROR($G182*VLOOKUP($A182,'نسب العمولة'!$C$3:$F$800,4,0),"") -> 198
A183: Asheya | B183: Celestial:32cm bowl | D183: White with gold | G183: 900 | H183: 789.4736842 | I183: 110.5263158 | J183: 900 | K183: Visa | L183: 2020-12-31 | M183: Dec-2020 | N183: =IFERROR($G183*VLOOKUP($A183,'نسب العمولة'!$C$3:$F$800,2,0),"") -> 630 | O183: =IFERROR($G183*VLOOKUP($A183,'نسب العمولة'!$C$3:$F$800,3,0),"") -> 72 | P183: =IFERROR($G183*VLOOKUP($A183,'نسب العمولة'!$C$3:$F$800,4,0),"") -> 198
A184: Sekmet | D184: Black | G184: 550 | H184: 482.4561404 | I184: 67.54385965 | J184: 550 | K184: Cash | L184: 2020-12-31 | M184: Dec-2020 | N184: =IFERROR($G184*VLOOKUP($A184,'نسب العمولة'!$C$3:$F$800,2,0),"") -> 385 | O184: =IFERROR($G184*VLOOKUP($A184,'نسب العمولة'!$C$3:$F$800,3,0),"") -> 44 | P184: =IFERROR($G184*VLOOKUP($A184,'نسب العمولة'!$C$3:$F$800,4,0),"") -> 121
A185: AMM Home | B185: BELTED MUG | C185: AMMBMB | D185: Black | F185: 400ML | G185: 285 | H185: 250 | I185: 35 | J185: 285 | K185: Cash | L185: 2020-12-31 | M185: Dec-2020 | N185: =IFERROR($G185*VLOOKUP($A185,'نسب العمولة'!$C$3:$F$800,2,0),"") -> 199.5 | O185: =IFERROR($G185*VLOOKUP($A185,'نسب العمولة'!$C$3:$F$800,3,0),"") -> 22.8 | P185: =IFERROR($G185*VLOOKUP($A185,'نسب العمولة'!$C$3:$F$800,4,0),"") -> 62.7
A186: Eunoia | B186: Dreamy Vase 1 | C186: DRV-011 | D186: Black | F186: Height: 25 cm | G186: 500 | H186: 438.5964912 | I186: 61.40350877 | J186: 500 | K186: Visa | L186: 2020-12-31 | M186: Dec-2020 | N186: =IFERROR($G186*VLOOKUP($A186,'نسب العمولة'!$C$3:$F$800,2,0),"") -> 350 | O186: =IFERROR($G186*VLOOKUP($A186,'نسب العمولة'!$C$3:$F$800,3,0),"") -> 40 | P186: =IFERROR($G186*VLOOKUP($A186,'نسب العمولة'!$C$3:$F$800,4,0),"") -> 110
A187: Eunoia | B187: Dreamy Vase 1 | C187: DRV-011 | D187: Black | F187: Height: 25 cm | G187: 500 | H187: 438.5964912 | I187: 61.40350877 | J187: 500 | K187: Visa | L187: 2020-12-31 | M187: Dec-2020 | N187: =IFERROR($G187*VLOOKUP($A187,'نسب العمولة'!$C$3:$F$800,2,0),"") -> 350 | O187: =IFERROR($G187*VLOOKUP($A187,'نسب العمولة'!$C$3:$F$800,3,0),"") -> 40 | P187: =IFERROR($G187*VLOOKUP($A187,'نسب العمولة'!$C$3:$F$800,4,0),"") -> 110
A188: Eunoia | B188: Dreamy Vase 1 | C188: DRV-011 | D188: Black | F188: Height: 25 cm | G188: 500 | H188: 438.5964912 | I188: 61.40350877 | J188: 500 | K188: Visa | L188: 2020-12-31 | M188: Dec-2020 | N188: =IFERROR($G188*VLOOKUP($A188,'نسب العمولة'!$C$3:$F$800,2,0),"") -> 350 | O188: =IFERROR($G188*VLOOKUP($A188,'نسب العمولة'!$C$3:$F$800,3,0),"") -> 40 | P188: =IFERROR($G188*VLOOKUP($A188,'نسب العمولة'!$C$3:$F$800,4,0),"") -> 110
A189: ETIKK | B189: AROMATHERAPY PILLOW MIST | C189: LAVENDER - BITTER ORANGE | G189: 120 | H189: 105.2631579 | I189: 14.73684211 | J189: 120 | K189: Cash | L189: 2020-12-31 | M189: Dec-2020 | N189: =IFERROR($G189*VLOOKUP($A189,'نسب العمولة'!$C$3:$F$800,2,0),"") -> 84 | O189: =IFERROR($G189*VLOOKUP($A189,'نسب العمولة'!$C$3:$F$800,3,0),"") -> 9.6 | P189: =IFERROR($G189*VLOOKUP($A189,'نسب العمولة'!$C$3:$F$800,4,0),"") -> 26.4
A190: ETIKK | B190: FACE & LIPS SCRUB | C190: LIME - ROSEMARY | G190: 200 | H190: 175.4385965 | I190: 24.56140351 | J190: 200 | K190: Cash | L190: 2020-12-31 | M190: Dec-2020 | N190: =IFERROR($G190*VLOOKUP($A190,'نسب العمولة'!$C$3:$F$800,2,0),"") -> 140 | O190: =IFERROR($G190*VLOOKUP($A190,'نسب العمولة'!$C$3:$F$800,3,0),"") -> 16 | P190: =IFERROR($G190*VLOOKUP($A190,'نسب العمولة'!$C$3:$F$800,4,0),"") -> 44
A191: ETTC. | B191: MIRAGE Red Wine 790 cc. 26.33 oz.*21.7Hcm | C191: NU-66078 | G191: 130 | H191: 114.0350877 | I191: 15.96491228 | J191: 130 | K191: Visa | L191: 2021-01-01 | M191: Jan-2021 | N191: =IFERROR($G191*VLOOKUP($A191,'نسب العمولة'!$C$3:$F$800,2,0),"") -> 91 | O191: =IFERROR($G191*VLOOKUP($A191,'نسب العمولة'!$C$3:$F$800,3,0),"") -> 10.4 | P191: =IFERROR($G191*VLOOKUP($A191,'نسب العمولة'!$C$3:$F$800,4,0),"") -> 28.6
A192: ETTC. | B192: MIRAGE Red Wine 790 cc. 26.33 oz.*21.7Hcm | C192: NU-66078 | G192: 130 | H192: 114.0350877 | I192: 15.96491228 | J192: 130 | K192: Visa | L192: 2021-01-01 | M192: Jan-2021 | N192: =IFERROR($G192*VLOOKUP($A192,'نسب العمولة'!$C$3:$F$800,2,0),"") -> 91 | O192: =IFERROR($G192*VLOOKUP($A192,'نسب العمولة'!$C$3:$F$800,3,0),"") -> 10.4 | P192: =IFERROR($G192*VLOOKUP($A192,'نسب العمولة'!$C$3:$F$800,4,0),"") -> 28.6
A193: By Aziza. | B193: Lost souls | C193: R005 | F193: Small | G193: 2090 | H193: 1833.333333 | I193: 256.6666667 | J193: 2090 | K193: Visa | L193: 2021-01-01 | M193: Jan-2021 | N193: =IFERROR($G193*VLOOKUP($A193,'نسب العمولة'!$C$3:$F$800,2,0),"") -> 1567.5 | O193: =IFERROR($G193*VLOOKUP($A193,'نسب العمولة'!$C$3:$F$800,3,0),"") -> 167.2 | P193: =IFERROR($G193*VLOOKUP($A193,'نسب العمولة'!$C$3:$F$800,4,0),"") -> 355.3
A194: Braes | B194: Shampoo | G194: 150 | H194: 131.5789474 | I194: 18.42105263 | J194: 150 | K194: Visa | L194: 2021-01-01 | M194: Jan-2021 | N194: =IFERROR($G194*VLOOKUP($A194,'نسب العمولة'!$C$3:$F$800,2,0),"") -> 105 | O194: =IFERROR($G194*VLOOKUP($A194,'نسب العمولة'!$C$3:$F$800,3,0),"") -> 12 | P194: =IFERROR($G194*VLOOKUP($A194,'نسب العمولة'!$C$3:$F$800,4,0),"") -> 33
A195: Braes | B195: Conditionner | G195: 150 | H195: 131.5789474 | I195: 18.42105263 | J195: 150 | K195: Cash | L195: 2021-01-01 | M195: Jan-2021 | N195: =IFERROR($G195*VLOOKUP($A195,'نسب العمولة'!$C$3:$F$800,2,0),"") -> 105 | O195: =IFERROR($G195*VLOOKUP($A195,'نسب العمولة'!$C$3:$F$800,3,0),"") -> 12 | P195: =IFERROR($G195*VLOOKUP($A195,'نسب العمولة'!$C$3:$F$800,4,0),"") -> 33
A196: Braes | B196: Hair Mask | G196: 300 | H196: =IFERROR((G196*100/114),"") -> 263.1578947 | I196: =IFERROR((H196*14/100),"") -> 36.84210526 | J196: =IFERROR((H196+I196),"") -> 300 | K196: Cash | L196: 2021-01-01 | M196: =TEXT(L196,"mmm-YYYY") -> Jan-2021 | N196: =IFERROR($G196*VLOOKUP($A196,'نسب العمولة'!$C$3:$F$800,2,0),"") -> 210 | O196: =IFERROR($G196*VLOOKUP($A196,'نسب العمولة'!$C$3:$F$800,3,0),"") -> 24 | P196: =IFERROR($G196*VLOOKUP($A196,'نسب العمولة'!$C$3:$F$800,4,0),"") -> 66
A197: Indira | B197: DOTTY | C197: IN2045R | G197: 500 | H197: 438.5964912 | I197: 61.40350877 | J197: 500 | K197: Visa | L197: 2021-01-01 | M197: Jan-2021 | N197: =IFERROR($G197*VLOOKUP($A197,'نسب العمولة'!$C$3:$F$800,2,0),"") -> 350 | O197: =IFERROR($G197*VLOOKUP($A197,'نسب العمولة'!$C$3:$F$800,3,0),"") -> 40 | P197: =IFERROR($G197*VLOOKUP($A197,'نسب العمولة'!$C$3:$F$800,4,0),"") -> 110
A198: Earth Owls | B198: Cherry & strawberry body scrub | C198: B01 | F198: 500g | G198: 270 | H198: 236.8421053 | I198: 33.15789474 | J198: 270 | K198: Visa | L198: 2021-01-01 | M198: Jan-2021 | N198: =IFERROR($G198*VLOOKUP($A198,'نسب العمولة'!$C$3:$F$800,2,0),"") -> 189 | O198: =IFERROR($G198*VLOOKUP($A198,'نسب العمولة'!$C$3:$F$800,3,0),"") -> 21.6 | P198: =IFERROR($G198*VLOOKUP($A198,'نسب العمولة'!$C$3:$F$800,4,0),"") -> 59.4
A199: Braes | B199: Conditionner | G199: 150 | H199: 131.5789474 | I199: 18.42105263 | J199: 150 | K199: Visa | L199: 2021-01-01 | M199: Jan-2021 | N199: =IFERROR($G199*VLOOKUP($A199,'نسب العمولة'!$C$3:$F$800,2,0),"") -> 105 | O199: =IFERROR($G199*VLOOKUP($A199,'نسب العمولة'!$C$3:$F$800,3,0),"") -> 12 | P199: =IFERROR($G199*VLOOKUP($A199,'نسب العمولة'!$C$3:$F$800,4,0),"") -> 33
A200: Earth Owls | B200: Très Rose Flower Water Vitamin E | C200: F01 | F200: 150g | G200: 65 | H200: 57.01754386 | I200: 7.98245614 | J200: 65 | K200: Visa | L200: 2021-01-01 | M200: Jan-2021 | N200: =IFERROR($G200*VLOOKUP($A200,'نسب العمولة'!$C$3:$F$800,2,0),"") -> 45.5 | O200: =IFERROR($G200*VLOOKUP($A200,'نسب العمولة'!$C$3:$F$800,3,0),"") -> 5.2 | P200: =IFERROR($G200*VLOOKUP($A200,'نسب العمولة'!$C$3:$F$800,4,0),"") -> 14.3
... 297 more rows

Sheet Pivot (hidden)
A1: Period | B1: Jan-2021
A3: Sum of Amount After Vat | B3: Column Labels
A4: Row Labels | B4: Cash | C4: CL | D4: Visa | E4: Grand Total
A5: AMM Home | B5: 570 | C5: 285 | D5: 4959.4 | E5: 5814.4
A6: Asheya | D6: 2017 | E6: 2017
A7: B Jewelry. | D7: 2400 | E7: 2400
A8: BLACK LOTUS | B8: 524.5 | D8: 587.5 | E8: 1112
A9: Braes | B9: 3683.2 | C9: 280 | D9: 2763.6 | E9: 6726.8
A10: By Aziza. | D10: 2090 | E10: 2090
A11: By Hand | B11: 2166 | C11: 80 | D11: 889 | E11: 3135
A12: Can lemon | B12: 1561.8 | D12: 5214.6 | E12: 6776.4
A13: Candle By pose | B13: 285 | D13: 570 | E13: 855
A14: Candle By Pose. | B14: 1160 | E14: 1160
A15: Carpet | D15: 11540 | E15: 11540
A16: Celeste | D16: 12626 | E16: 12626
A17: Dunia anabtawi | D17: 2800 | E17: 2800
A18: Earth Owls | B18: 643 | C18: 270 | D18: 2128.4 | E18: 3041.4
A19: ETIKK | B19: 1632 | D19: 1960.8 | E19: 3592.8
A20: ETTC | B20: 672.6 | D20: 3169.2 | E20: 3841.8
A21: ETTC Denzy | B21: 400 | E21: 400
A22: ETTC. | D22: 3205 | E22: 3205
A23: Eunoia | D23: 690 | E23: 690
A24: EUNOIA HOME ORDER | D24: 180 | E24: 180
A25: From Her Travels | B25: 2473.8 | D25: 2979.4 | E25: 5453.2
A26: Indira | B26: 1754 | D26: 3350 | E26: 5104
A27: Kay | B27: 684 | E27: 684
A28: Maison Molak | D28: 8861 | E28: 8861
A29: Nokoosh | B29: 780.9 | D29: 2200 | E29: 2980.9
A30: Ramla | D30: 4100 | E30: 4100
A31: SAAB | B31: 3000 | D31: 7286 | E31: 10286
A32: Sekmet | B32: 690 | D32: 690 | E32: 1380
A33: Tayets | B33: 1345.2 | D33: 7151 | E33: 8496.2
A34: The Kut | B34: 0 | D34: 2100 | E34: 2100
A35: TIYI | B35: 683 | E35: 683
A36: Grand Total | B36: 24709 | C36: 915 | D36: 98507.9 | E36: 124131.9

Sheet Sheet1 (hidden)
C1: =SUBTOTAL(109,C3:C11000) -> 333004.8
B2: Brand | C2: Amount
B3: Aliel | C3: =SUMPRODUCT((Data!$A$3:$A$15000=Sheet1!B3)*(Data!$G$3:$G$15000)) -> 20320
B4: AMM Home | C4: =SUMPRODUCT((Data!$A$3:$A$15000=Sheet1!B4)*(Data!$G$3:$G$15000)) -> 8639.4
B5: Ariika | C5: =SUMPRODUCT((Data!$A$3:$A$15000=Sheet1!B5)*(Data!$G$3:$G$15000)) -> 5656
B6: Asheya | C6: =SUMPRODUCT((Data!$A$3:$A$15000=Sheet1!B6)*(Data!$G$3:$G$15000)) -> 17377
B7: B Jewelry. | C7: =SUMPRODUCT((Data!$A$3:$A$15000=Sheet1!B7)*(Data!$G$3:$G$15000)) -> 2400
B8: BLACK LOTUS | C8: =SUMPRODUCT((Data!$A$3:$A$15000=Sheet1!B8)*(Data!$G$3:$G$15000)) -> 1527
B9: Black louts | C9: =SUMPRODUCT((Data!$A$3:$A$15000=Sheet1!B9)*(Data!$G$3:$G$15000)) -> 100
B10: Bold and refined | C10: =SUMPRODUCT((Data!$A$3:$A$15000=Sheet1!B10)*(Data!$G$3:$G$15000)) -> 2950
B11: Braes | C11: =SUMPRODUCT((Data!$A$3:$A$15000=Sheet1!B11)*(Data!$G$3:$G$15000)) -> 11886.8
B12: By Aziza. | C12: =SUMPRODUCT((Data!$A$3:$A$15000=Sheet1!B12)*(Data!$G$3:$G$15000)) -> 6270
B13: By Hand | C13: =SUMPRODUCT((Data!$A$3:$A$15000=Sheet1!B13)*(Data!$G$3:$G$15000)) -> 13660
B14: By Leila Nassar | C14: =SUMPRODUCT((Data!$A$3:$A$15000=Sheet1!B14)*(Data!$G$3:$G$15000)) -> 1926
B15: Can lemon | C15: =SUMPRODUCT((Data!$A$3:$A$15000=Sheet1!B15)*(Data!$G$3:$G$15000)) -> 6930.4
B16: Candle By pose | C16: =SUMPRODUCT((Data!$A$3:$A$15000=Sheet1!B16)*(Data!$G$3:$G$15000)) -> 1607.2
B17: Candle By Pose. | C17: =SUMPRODUCT((Data!$A$3:$A$15000=Sheet1!B17)*(Data!$G$3:$G$15000)) -> 5970
B18: Carpet | C18: =SUMPRODUCT((Data!$A$3:$A$15000=Sheet1!B18)*(Data!$G$3:$G$15000)) -> 12540
B19: Celeste | C19: =SUMPRODUCT((Data!$A$3:$A$15000=Sheet1!B19)*(Data!$G$3:$G$15000)) -> 23833
B20: Dunia anabtawi | C20: =SUMPRODUCT((Data!$A$3:$A$15000=Sheet1!B20)*(Data!$G$3:$G$15000)) -> 8200
B21: Earth Owls | C21: =SUMPRODUCT((Data!$A$3:$A$15000=Sheet1!B21)*(Data!$G$3:$G$15000)) -> 6607.2
B22: ETIKK | C22: =SUMPRODUCT((Data!$A$3:$A$15000=Sheet1!B22)*(Data!$G$3:$G$15000)) -> 8200.8
B23: ETTC | C23: =SUMPRODUCT((Data!$A$3:$A$15000=Sheet1!B23)*(Data!$G$3:$G$15000)) -> 4753.8
B24: ETTC Denzy | C24: =SUMPRODUCT((Data!$A$3:$A$15000=Sheet1!B24)*(Data!$G$3:$G$15000)) -> 600
B25: ETTC. | C25: =SUMPRODUCT((Data!$A$3:$A$15000=Sheet1!B25)*(Data!$G$3:$G$15000)) -> 8434
B26: Eunoia | C26: =SUMPRODUCT((Data!$A$3:$A$15000=Sheet1!B26)*(Data!$G$3:$G$15000)) -> 3110
B27: EUNOIA HOME ORDER | C27: =SUMPRODUCT((Data!$A$3:$A$15000=Sheet1!B27)*(Data!$G$3:$G$15000)) -> 180
B28: From Her Travels | C28: =SUMPRODUCT((Data!$A$3:$A$15000=Sheet1!B28)*(Data!$G$3:$G$15000)) -> 6378.2
B29: Hand pick | C29: =SUMPRODUCT((Data!$A$3:$A$15000=Sheet1!B29)*(Data!$G$3:$G$15000)) -> 250.8
B30: HandPick | C30: =SUMPRODUCT((Data!$A$3:$A$15000=Sheet1!B30)*(Data!$G$3:$G$15000)) -> 660
B31: House Of GA | C31: =SUMPRODUCT((Data!$A$3:$A$15000=Sheet1!B31)*(Data!$G$3:$G$15000)) -> 4618
B32: Indira | C32: =SUMPRODUCT((Data!$A$3:$A$15000=Sheet1!B32)*(Data!$G$3:$G$15000)) -> 11654
B33: Kay | C33: =SUMPRODUCT((Data!$A$3:$A$15000=Sheet1!B33)*(Data!$G$3:$G$15000)) -> 3884
B34: Knana | C34: =SUMPRODUCT((Data!$A$3:$A$15000=Sheet1!B34)*(Data!$G$3:$G$15000)) -> 4218
B35: Linda Farah | C35: =SUMPRODUCT((Data!$A$3:$A$15000=Sheet1!B35)*(Data!$G$3:$G$15000)) -> 3500
B36: Lush | C36: =SUMPRODUCT((Data!$A$3:$A$15000=Sheet1!B36)*(Data!$G$3:$G$15000)) -> 26800
B37: Maison Molak | C37: =SUMPRODUCT((Data!$A$3:$A$15000=Sheet1!B37)*(Data!$G$3:$G$15000)) -> 8861
B38: Myne | C38: =SUMPRODUCT((Data!$A$3:$A$15000=Sheet1!B38)*(Data!$G$3:$G$15000)) -> 855
B39: Nokoosh | C39: =SUMPRODUCT((Data!$A$3:$A$15000=Sheet1!B39)*(Data!$G$3:$G$15000)) -> 9318
B40: Own The Trend | C40: =SUMPRODUCT((Data!$A$3:$A$15000=Sheet1!B40)*(Data!$G$3:$G$15000)) -> 8500
B41: Ramla | C41: =SUMPRODUCT((Data!$A$3:$A$15000=Sheet1!B41)*(Data!$G$3:$G$15000)) -> 4850
B42: SAAB | C42: =SUMPRODUCT((Data!$A$3:$A$15000=Sheet1!B42)*(Data!$G$3:$G$15000)) -> 32102
B43: Sekmet | C43: =SUMPRODUCT((Data!$A$3:$A$15000=Sheet1!B43)*(Data!$G$3:$G$15000)) -> 4368
B44: Siko | C44: =SUMPRODUCT((Data!$A$3:$A$15000=Sheet1!B44)*(Data!$G$3:$G$15000)) -> 3200
B45: Tayets | C45: =SUMPRODUCT((Data!$A$3:$A$15000=Sheet1!B45)*(Data!$G$3:$G$15000)) -> 10428.2
B46: The Kut | C46: =SUMPRODUCT((Data!$A$3:$A$15000=Sheet1!B46)*(Data!$G$3:$G$15000)) -> 2100
B47: TIYI | C47: =SUMPRODUCT((Data!$A$3:$A$15000=Sheet1!B47)*(Data!$G$3:$G$15000)) -> 2781

Sheet نسب العمولة
A2: م | B2: نظام العمولة | C2: اسم المسؤل | D2: Designer Share | E2: I/S Share | F2: Net Profit | G2: الاجمالي | H2: احتساب نسبة العمولة
A3: 1 | B3: بيع | C3: Aliel | D3: 0.7 | E3: 0.08 | F3: =100%-D3-E3 -> 0.22 | G3: =D3+E3+F3 -> 1 | H3: الايراد
A4: 2 | B4: بيع | C4: AMM Home | D4: 0.7 | E4: 0.08 | F4: =100%-D4-E4 -> 0.22 | G4: 1 | H4: الايراد
A5: 3 | B5: بيع | C5: Ariika | D5: 0.7 | E5: 0.08 | F5: 0.22 | G5: 1 | H5: الايراد
A6: 4 | B6: بيع | C6: Asheya | D6: 0.7 | E6: 0.08 | F6: 0.22 | G6: 1 | H6: الايراد
A7: 5 | B7: بيع | C7: B Jewelry. | D7: 0.75 | E7: 0.08 | F7: 0.17 | G7: 1 | H7: الايراد
A8: 6 | B8: بيع | C8: Braes | D8: 0.7 | E8: 0.08 | F8: 0.22 | G8: 1 | H8: الايراد
A9: 7 | B9: بيع | C9: By Aziza. | D9: 0.75 | E9: 0.08 | F9: 0.17 | G9: 1 | H9: الايراد
A10: 8 | B10: بيع | C10: By Hand | D10: 0 | E10: 0.08 | F10: 0.92 | G10: 1 | H10: الايراد
A11: 9 | B11: بيع | C11: Can lemon | D11: 0 | E11: 0.08 | F11: 0.92 | G11: 1 | H11: الايراد
A12: 10 | B12: بيع | C12: Candle By Pose. | D12: 0.75 | E12: 0.08 | F12: 0.17 | G12: 1 | H12: الايراد
A13: 11 | B13: بيع | C13: Carpet | D13: 0 | E13: 0.08 | F13: 0.92 | G13: 1 | H13: الايراد
A14: 12 | B14: بيع | C14: Celeste | D14: 0.7 | E14: 0.08 | F14: 0.22 | G14: 1 | H14: الايراد
A15: 13 | B15: بيع | C15: Dunia anabtawi | D15: 0.7 | E15: 0.08 | F15: 0.22 | G15: 1 | H15: الايراد
A16: 14 | B16: بيع | C16: Earth Owls | D16: 0.7 | E16: 0.08 | F16: 0.22 | G16: 1 | H16: الايراد
A17: 15 | B17: بيع | C17: Etikk | D17: 0.7 | E17: 0.08 | F17: 0.22 | G17: 1 | H17: الايراد
A18: 16 | B18: بيع | C18: ETTC. | D18: 0.7 | E18: 0.08 | F18: 0.22 | G18: 1 | H18: الايراد
A19: 17 | B19: بيع | C19: Eunoia | D19: 0.7 | E19: 0.08 | F19: 0.22 | G19: 1 | H19: الايراد
A20: 18 | B20: بيع | C20: EUNOIA HOME ORDER | D20: 0.7 | E20: 0.08 | F20: 0.22 | G20: 1 | H20: الايراد
A21: 19 | B21: بيع | C21: From her travels | D21: 0.7 | E21: 0.08 | F21: 0.22 | G21: 1 | H21: الايراد
A22: 20 | B22: بيع | C22: HandPick | D22: 0.7 | E22: 0.08 | F22: 0.22 | G22: 1 | H22: الايراد
A23: 21 | B23: بيع | C23: Indira | D23: 0.7 | E23: 0.08 | F23: 0.22 | G23: 1 | H23: الايراد
A24: 22 | B24: بيع | C24: Kay | D24: 0.7 | E24: 0.08 | F24: 0.22 | G24: 1 | H24: الايراد
A25: 23 | B25: بيع | C25: Linda Farah | D25: 0.7 | E25: 0.08 | F25: 0.22 | G25: 1 | H25: الايراد
A26: 24 | B26: بيع | C26: Lush | D26: 0.7 | E26: 0.08 | F26: 0.22 | G26: 1 | H26: الايراد
A27: 25 | B27: بيع | C27: Maison Molak | D27: 0.7 | E27: 0.08 | F27: 0.22 | G27: 1 | H27: الايراد
A28: 26 | B28: بيع | C28: Nokoosh | D28: 0.7 | E28: 0.08 | F28: 0.22 | G28: 1 | H28: الايراد
A29: 27 | B29: بيع | C29: Own The Trend | D29: 0.7 | E29: 0.08 | F29: 0.22 | G29: 1 | H29: الايراد
A30: 28 | B30: بيع | C30: Ramla | D30: 0.7 | E30: 0.08 | F30: 0.22 | G30: 1 | H30: الايراد
A31: 29 | B31: بيع | C31: SAAB | D31: 0.7 | E31: 0.08 | F31: 0.22 | G31: 1 | H31: الايراد
A32: 30 | B32: بيع | C32: Sekmet | D32: 0.7 | E32: 0.08 | F32: 0.22 | G32: 1 | H32: الايراد
A33: 31 | B33: بيع | C33: Siko | D33: 0.7 | E33: 0.08 | F33: 0.22 | G33: 1 | H33: الايراد
A34: 32 | B34: بيع | C34: Tayets | D34: 0.7 | E34: 0.08 | F34: 0.22 | G34: 1 | H34: الايراد
A35: 33 | B35: بيع | C35: The Kut | D35: 0.7 | E35: 0.08 | F35: 0.22 | G35: 1 | H35: الايراد
A36: 34 | B36: بيع | C36: TIYI | D36: 0.75 | E36: 0.08 | F36: 0.17 | G36: 1 | H36: الايراد
A37: 35 | B37: بيع | C37: ETTC DENZY | D37: 0.85 | E37: 0.08 | F37: 0.07 | G37: 1 | H37: الايراد
A38: 36 | B38: بيع | C38: BLACK LOTUS | D38: 0.7 | E38: 0.08 | F38: 0.22 | G38: 1 | H38: الايراد
A39: 37 | B39: بيع | C39: ETTC | D39: 0.7 | E39: 0.08 | F39: 0.22 | G39: 1 | H39: الايراد
A40: 38 | B40: بيع | C40: Candle By Pose | D40: 0.7 | E40: 0.08 | F40: 0.22 | G40: 1 | H40: الايراد
A41: 39 | B41: بيع | C41: Knana | D41: 0.7 | E41: 0.08 | F41: 0.22 | G41: 1 | H41: الايراد
A42: 40 | B42: بيع | C42: Myne | D42: 0.7 | E42: 0.08 | F42: 0.22 | G42: 1 | H42: الايراد
A43: 41 | B43: بيع | C43: By Leila Nassar | D43: 0.7 | E43: 0.08 | F43: =100%-D43-E43 -> 0.22 | G43: =D43+E43+F43 -> 1 | H43: الايراد
A44: 42 | B44: بيع | C44: Hand pick | D44: 0.7 | E44: 0.08 | F44: 0.22 | G44: 1 | H44: الايراد
A45: 43 | B45: بيع | C45: House Of GA | D45: 0.7 | E45: 0.08 | F45: 0.22 | G45: 1 | H45: الايراد
A46: 44 | G46: 0
A47: 45 | G47: 0
A48: 46 | G48: 0
A49: 47 | G49: 0
A50: 48 | G50: 0
A51: 49 | G51: 0
A52: 50 | G52: 0
A53: 51 | G53: 0
A54: 52 | G54: 0
A55: 53 | G55: 0
A56: 54 | G56: 0
A57: 55 | G57: 0
A58: 56 | G58: 0
A59: 57 | G59: 0
A60: 58 | G60: 0
A61: 59 | G61: 0
A62: 60 | G62: 0
A63: 61 | G63: 0
A64: 62 | G64: 0
A65: 63 | G65: 0
A66: 64 | G66: 0
A67: 65 | G67: =D67+E67+F67 -> 0
A68: 66 | G68: 0
A69: 67 | G69: 0
A70: 68 | G70: 0
A71: 69 | G71: 0
A72: 70 | G72: 0
A73: 71 | G73: 0
A74: 72 | G74: 0
A75: 73 | G75: 0
A76: 74 | G76: 0
A77: 75 | G77: 0
A78: 76 | G78: 0
A79: 77 | G79: 0
A80: 78 | G80: 0
A81: 79 | G81: 0
A82: 80 | G82: 0
A83: 81 | G83: 0
A84: 82 | G84: 0
A85: 83 | G85: 0
A86: 84 | G86: 0
A87: 85 | G87: 0
A88: 86 | G88: 0
A89: 87 | G89: 0
A90: 88 | G90: 0
A91: 89 | G91: 0
A92: 90 | G92: 0
A93: 91 | G93: 0
A94: 92 | G94: 0
A95: 93 | G95: 0
A96: 94 | G96: 0
A97: 95 | G97: 0
A98: 96 | G98: 0
A99: 97 | G99: 0
A100: 98 | G100: 0
A101: 99 | G101: 0
A102: 100 | G102: 0
A103: 101 | G103: 0
A104: 102 | G104: 0
A105: 103 | G105: 0
A106: 104 | G106: 0
A107: 105 | G107: 0
A108: 106 | G108: 0
A109: 107 | G109: 0
A110: 108 | G110: 0
A111: 109 | G111: 0
A112: 110 | G112: 0
A113: 111 | G113: 0
A114: 112 | G114: 0
A115: 113 | G115: 0
A116: 114 | G116: 0
A117: 115 | G117: 0
A118: 116 | G118: 0
A119: 117 | G119: 0
A120: 118 | G120: 0
A121: 119 | G121: 0
A122: 120 | G122: 0
A123: 121 | G123: 0
A124: 122 | G124: 0
A125: 123 | G125: 0
A126: 124 | G126: 0
A127: 125 | G127: 0
A128: 126 | G128: 0
A129: 127 | G129: 0
A130: 128 | G130: 0
A131: 129 | G131: =D131+E131+F131 -> 0
A132: 130 | G132: 0
A133: 131 | G133: 0
A134: 132 | G134: 0
A135: 133 | G135: 0
A136: 134 | G136: 0
A137: 135 | G137: 0
A138: 136 | G138: 0
A139: 137 | G139: 0
A140: 138 | G140: 0
A141: 139 | G141: 0
A142: 140 | G142: 0
A143: 141 | G143: 0
A144: 142 | G144: 0
A145: 143 | G145: 0
A146: 144 | G146: 0
A147: 145 | G147: 0
A148: 146 | G148: 0
A149: 147 | G149: 0
A150: 148 | G150: 0
A151: 149 | G151: 0
A152: 150 | G152: 0
A153: 151 | G153: 0
A154: 152 | G154: 0
A155: 153 | G155: 0
A156: 154 | G156: 0
A157: 155 | G157: 0
A158: 156 | G158: 0
A159: 157 | G159: 0
A160: 158 | G160: 0
A161: 159 | G161: 0
A162: 160 | G162: 0
A163: 161 | G163: 0
A164: 162 | G164: 0
A165: 163 | G165: 0
A166: 164 | G166: 0
A167: 165 | G167: 0
A168: 166 | G168: 0
A169: 167 | G169: 0
A170: 168 | G170: 0
A171: 169 | G171: 0
A172: 170 | G172: 0
A173: 171 | G173: 0
A174: 172 | G174: 0
A175: 173 | G175: 0
A176: 174 | G176: 0
A177: 175 | G177: 0
A178: 176 | G178: 0
A179: 177 | G179: 0
A180: 178 | G180: 0
A181: 179 | G181: 0
A182: 180 | G182: 0
A183: 181 | G183: 0
A184: 182 | G184: 0
A185: 183 | G185: 0
A186: 184 | G186: 0
A187: 185 | G187: 0
A188: 186 | G188: 0
A189: 187 | G189: 0
A190: 188 | G190: 0
A191: 189 | G191: 0
A192: 190 | G192: 0
A193: 191 | G193: 0
A194: 192 | G194: 0
A195: 193 | G195: =D195+E195+F195 -> 0
A196: 194 | G196: 0
A197: 195 | G197: 0
A198: 196 | G198: 0
A199: 197 | G199: 0
A200: 198 | G200: 0
A201: 199 | G201: 0
... 113 more rows
